Workbook

Sheet Co-benefits (2)
F3: Expected Reduction in GHG emissions and Air Pollution
F5: Coal Storage | G5: Cyclone | H5: Air preheater | I5: Coal Feeder | J5: Air feed Adj. | K5: Combined Scenario*
E6: GHG (t/y) | F6: 1 | G6: 0 | H6: 1 | I6: 1 | J6: 1 | K6: =SUM(F6:I6) -> 3 | P6: =IF(Output!J23="",0,(Output!I23-Output!J23)*Input!$E$57/1000) -> 16.71768188 | Q6: =IF(Output!K23="",0,(Output!I23-Output!K23)*Input!$E$57/1000) -> 0 | R6: =IF(Output!L23="",0,(Output!I23-Output!L23)*Input!$E$57/1000) -> 141.5638733 | S6: =IF(Output!M23="",0,(Output!I23-Output!M23)*Input!$E$57/1000) -> 210.909729 | T6: =IF(Output!N23="",0,(Output!I23-Output!N23)*Input!$E$57/1000) -> 201.1138916 | U6: =SUM(P6:T6) -> 570.3051758
E7: SO2 (kg/y) | F7: 0.9614733487 | G7: 0 | H7: 0.9999994165 | I7: 1.142672195 | J7: 0.9999999042 | K7: =SUM(F7:I7) -> 3.10414496 | P7: =IF(Output!J25="",0,(Output!I25-Output!J25)*Input!$E$57) -> 154.9637318 | Q7: =IF(Output!K25="",0,(Output!I25-Output!K25)*Input!$E$57) -> 0 | R7: =IF(Output!L25="",0,(Output!I25-Output!L25)*Input!$E$57) -> 1438.531876 | S7: =IF(Output!M25="",0,(Output!I25-Output!M25)*Input!$E$57) -> 2142.673135 | T7: =IF(Output!N25="",0,(Output!I25-Output!N25)*Input!$E$57) -> 2043.663263 | U7: =SUM(P7:T7) -> 5779.832006
E8: PM (kg/y) | F8: =IF(P8<0,0,P8) -> 195.2564716 | G8: =IF(Q8<0,0,Q8) -> 9561.48155 | H8: =IF(R8<0,0,R8) -> 1653.417349 | I8: =IF(S8<0,0,S8) -> 3075.392842 | J8: 2348.942161 | K8: 14485.54821 | P8: =IF(Output!J26="",0,(Output!I26-Output!J26)*Input!$E$57) -> 195.2564716 | Q8: =IF(Output!K26="",0,(Output!I26-Output!K26)*Input!$E$57) -> 9561.48155 | R8: =IF(Output!L26="",0,(Output!I26-Output!L26)*Input!$E$57) -> 1653.417349 | S8: =IF(Output!M26="",0,(Output!I26-Output!M26)*Input!$E$57) -> 3075.392842 | T8: =IF(Output!N26="",0,(Output!I26-Output!N26)*Input!$E$57) -> 2348.942161 | U8: 16834.49037
E9: CO (kg/y) | F9: 0 | G9: 0 | H9: 0 | I9: 0 | J9: 0 | K9: 0 | P9: =IF(Output!J27="",0,(Output!I27-Output!J27)*Input!$E$57) -> 0 | Q9: =IF(Output!K27="",0,(Output!I27-Output!K27)*Input!$E$57) -> 0 | R9: =IF(Output!L27="",0,(Output!I27-Output!L27)*Input!$E$57) -> 0 | S9: =IF(Output!M27="",0,(Output!I27-Output!M27)*Input!$E$57) -> 0 | T9: =IF(Output!N27="",0,(Output!I27-Output!N27)*Input!$E$57) -> 0 | U9: 0
E10: NOx (kg/y) | F10: =IF(P10<0,0,P10) -> 25.50646663 | G10: =IF(Q10<0,0,Q10) -> 0 | H10: 215.9870416 | I10: =IF(S10<0,0,S10) -> 321.7895329 | J10: 306.8438172 | K10: 563.2830411 | P10: =IF(Output!J28="",0,(Output!I28-Output!J28)*Input!$E$57) -> 25.50646663 | Q10: =IF(Output!K28="",0,(Output!I28-Output!K28)*Input!$E$57) -> 0 | R10: =IF(Output!L28="",0,(Output!I28-Output!L28)*Input!$E$57) -> 215.9870416 | S10: =IF(Output!M28="",0,(Output!I28-Output!M28)*Input!$E$57) -> 321.7895329 | T10: =IF(Output!N28="",0,(Output!I28-Output!N28)*Input!$E$57) -> 306.8438172 | U10: =SUM(P10:T10) -> 870.1268584
E11: * Excluding Air feed Adj.

Sheet Start
I12: Select your tool
AH15: HOB Tool
AH16: Solar Energy Tool
AH18: 1
AH19: 1

Sheet Input
U1: Selcte your method | Y1: Heating Load Demand | Z1: 1
Y2: exhaust gas analysis | Z2: 1
C3: Heating Load Demand | G3: User Input Data
C4: Method 1 | D4: Net heat quantity supplied (kW) | E4: 260 | G4: Tool Default Values
A6: Input Data | S6: 2 | Z6: Anthracite
A7: Scenario Analysis | C7: Method 2 | D7: Utility Demand | Z7: Bituminous
A8: Environmental Co-Benefits | D8: Hot water demand (kg/s) | Z8: Sub bituminous
A9: Health & Economic Co-Benefits | D9: OutletTemp. (℃) | Z9: Lignite
A10: Database | D10: Inlet Temp. (℃) | Z10: Other
A11: Calculation Method | Z11: 4
C12: Method 3 | D12: Building thermal load demand
D13: Heat flux density (J/(h*m^3*℃))
D14: Volume of building (m^3) | Z14: TRUE
D15: Outdoor temperature (℃) | Z15: FALSE
D16: Indoor temperature (℃)
C19: Ambient Condition | W19: Select Your Method
D20: Relative humidity (kg/kg drg air) | E20: 0.0204 | W20: Method 1
D21: Ambient temperature (℃) | E21: 10 | W21: Method 2
D22: Wind speed (m/s) | E22: 3.5 | W22: Method 3
W23: 1
W24: Method 1
W25: Method 2
C26: Boiler Specifications
D27: Coal Feeder | E27: Hand-feed
D28: Rated Power (MW) | E28: 0.6
D29: Surface temperature (℃) | E29: 60
D30: Lateral surface area (m2) | E30: 18
C33: Fuel
C34: Type of coal
C35: Ultimate Analysis (%)
D36: Carbon | E36: 63.3
D37: Hydrogen | E37: 4.5
D38: Sulphur | E38: 1.1
D39: Nitrogen | E39: 1.1
D40: Oxygen | E40: 19
D41: Ash | E41: 11.1
D42: Moisture | E42: 33.3
D43: Low calorific value (kJ/kg) | E43: 14687.328
D44: Gross calorific value (kJ/kg) | E44: 16491
C45: Exhaust Gas Analysis
C46: Method 1
D47: Excess air % | E47: 200
D48: Exhaust gas temperature(℃) | E48: 190
C49: Method 2
D50: Component analysis
D51: CO2 (%)
D52: O2 (%)
D53: CO (%)
D54: Exhaust gas temperature(℃)
C55: Plant Factor
D57: Hours per year | E57: 5000

Sheet Health
E3: Exposure Level | I3: Results
F4: Adult | G4: 1616477 | J4: COPD | K4: IHD | L4: Stroke | M4: LC | N4: ALRI | O4: TB | P4: Total | S4: =IFERROR((1.007+0.001675*G28+2.848*(10^-10)*G28^3-7.654*(10^-7)*G28^2),1) -> 1.100040958 | T4: =IFERROR(((41.12+G28-421.9/(3.363+G28))^0.09225-0.2773),1) -> 1.238978698 | U4: =IFERROR(((1.199+0.03729*G28)^0.13),1) -> 1.169028054 | V4: =IFERROR((0.9849+0.001803*G28-2.049*(10^-8)*G28^2),1) -> 1.087604428 | W4: =IFERROR((EXP((23.51*G28+G28^2)/(6063+138*G28+G28^2))),1) -> 1.306233881 | X4: =IFERROR(((0.0225*G28)+0.8426),1) -> 2.1251
F5: Child (0-5) | G5: 167099 | I5: Baseline Scenario | S5: =IFERROR((SQRT(1.538+0.01125*G28+ (-17.93)/(27.84+11))),1) -> 1.310577168 | T5: =IFERROR((2.281+(-422.7 - 20.98*G28)/(435.4+(G28^2))),1) -> 1.841699164 | U5: =IFERROR((2.075 + 5.204 *(10^-5)*G28+(-710-8.422*G28)/(643.9+G28^2-G28)),1) -> 1.767725137 | V5: =IFERROR((1.032+0.01001*G28+7.365*(10^-8)*G28^3+7.736*(10^-14)*G28^5 - 2.268*(10^-17)* G28^ 6 -1.053*(10^-10)*G28^4 - 2.927*(10^-5)*G28^2),1) -> 1.520045457 | W5: =(IFERROR((EXP((23.51*G28+G28^2)/(6063+138*G28+G28^2))),1))*1.1 -> 1.436857269 | X5: =(IFERROR(((0.0225*G28)+0.8426),1))*1.1 -> 2.33761
A6: Input Data | I6: Relative Risk (Lower Limit) | J6: =S7 -> 1.100040958 | K6: =T7 -> 1.238978698 | L6: 1.169028054 | M6: 1.087604428 | N6: 1.306233881 | O6: 2.1251
A7: Scenario Analysis | I7: Relative Risk (Upper Limit) | J7: =S8 -> 1.310577168 | K7: =T8 -> 1.841699164 | L7: =U8 -> 1.767725137 | M7: =V8 -> 1.520045457 | N7: =W8 -> 1.436857269 | O7: =X8 -> 2.33761 | S7: =IF(S4<0,0,S4) -> 1.100040958 | T7: =IF(T4<0,0,T4) -> 1.238978698 | U7: 1.169028054 | V7: 1.087604428 | W7: 1.306233881 | X7: 2.1251
A8: Environmental Co-Benefits | E8: Deaths and DALYs (Baseline) | I8: PAF (Lower Limit) | J8: =(J6-1)/((J6-1)+1) -> 0.09094293954 | K8: =(K6-1)/((K6-1)+1) -> 0.1928836211 | L8: 0.1445885352 | M8: 0.08054806117 | N8: 0.2344403136 | O8: 0.529433909 | S8: =IF(S5<0,0,S5) -> 1.310577168 | T8: 1.841699164 | U8: 1.767725137 | V8: 1.520045457 | W8: 1.436857269 | X8: 2.33761
A9: Health & Economic Co-Benefits | F9: Background Mortality Rate | G9: (per 100000) | I9: PAF (Upper Limit) | J9: =(J7-1)/((J7-1)+1) -> 0.2369773986 | K9: 0.4570231558 | L9: 0.4343011937 | M9: 0.3421249373 | N9: 0.3040366487 | O9: 0.5722126445
A10: Database | F10: Chronic Obstructive pulmonary Disease (COD) | G10: 23 | I10: DALYs (Lower Limit) | J10: =G18*J8 -> 146.8163795 | K10: =G19*K8 -> 2299.475326 | L10: =G20*L8 -> 1400.524243 | M10: =G21*M8 -> 120.0324049 | N10: =G22*N8 -> 2532.87476 | O10: =G23*O8 -> 1314.933892 | P10: =SUM(J10:O10) -> 7814.657005
A11: Calculation Method | F11: Ischemic Heart Disease(IHD) | G11: 150.9 | I11: DALYs Upper Limit) | J11: =G18*J9 -> 382.5713558 | K11: =G19*K9 -> 5448.432917 | L11: =G20*L9 -> 4206.760582 | M11: =G21*M9 -> 509.83324 | N11: =G22*N9 -> 3284.788107 | O11: =G23*O9 -> 1421.181732 | P11: 15253.56793
F12: Cerebrovascular disease (Stroke) | G12: 109.7 | I12: Co-benefits Scenario
F13: Lung Cancer (LC) | G13: 18.14 | I13: Relative Risk (Lower Limit) | J13: =IF(G33<0.01,0,S19) -> 1.099030473 | K13: =IF(G33<0.01,0,T19) -> 1.237885879 | L13: =IF(G33<0.01,0,U19) -> 1.167942012 | M13: =IF(G33<0.01,0,V19) -> 1.086460754 | N13: =IF(G33<0.01,0,W19) -> 1.302839329 | O13: =IF(G33<0.01,0,X19) -> 2.11080945
F14: Acute Lower Respiratory Infections (ALRI) | G14: 276.82 | I14: Relative Risk (Upper Limit) | J14: =IF(G33<0.01,0,S20) -> 1.307848324 | K14: =IF(G33<0.01,0,T20) -> 1.836631777 | L14: =IF(G33<0.01,0,U20) -> 1.763231546 | M14: =IF(G33<0.01,0,V20) -> 1.515390604 | N14: =IF(G33<0.01,0,W20) -> 1.433123261 | O14: =IF(G33<0.01,0,X20) -> 2.321890395
F15: Tuberculosis and Bronchus (TB) | G15: 15.7 | I15: PAF (Lower Limit) | J15: =IF(AB16<0,0,AB16) -> 0.09010712218 | K15: 0.1921710903 | L15: 0.143793108 | M15: 0.0795801906 | N15: 0.2324456454 | O15: 0.526248094
I16: PAF (Upper Limit) | J16: 0.235385341 | K16: 0.4555250471 | L16: 0.4328595118 | M16: 0.3401041306 | N16: 0.302223314 | O16: 0.5693164491 | S16: =IFERROR((1.007+0.001675*G33+2.848*(10^-10)*G33^3-7.654*(10^-7)*G33^2),1) -> 1.099030473 | T16: =IFERROR(((41.12+G33-421.9/(3.363+G33))^0.09225-0.2773),1) -> 1.237885879 | U16: =IFERROR(((1.199+0.03729*G33)^0.13),1) -> 1.167942012 | V16: =IFERROR((0.9849+0.001803*G33-2.049*(10^-8)*G33^2),1) -> 1.086460754 | W16: =IFERROR((EXP((23.51*G33+G33^2)/(6063+138*G33+G33^2))),1) -> 1.302839329 | X16: =IFERROR(((0.0225*G33)+0.8426),1) -> 2.11080945 | AB16: =IF(G33<0.01,0,(J13-1)/((J13-1)+1)) -> 0.09010712218 | AC16: =IF(G33<0.01,0,(K13-1)/((K13-1)+1)) -> 0.1921710903 | AD16: =IF(G33<0.01,0,(L13-1)/((L13-1)+1)) -> 0.143793108 | AE16: =IF(G33<0.01,0,(M13-1)/((M13-1)+1)) -> 0.0795801906 | AF16: =IF(G33<0.01,0,(N13-1)/((N13-1)+1)) -> 0.2324456454 | AG16: =IF(G33<0.01,0,(O13-1)/((O13-1)+1)) -> 0.526248094
F17: DALYs | I17: DALYs (Lower Limit) | J17: =IF($G$33<0.01,0,G18*J15) -> 145.4670535 | K17: =IF($G$33<0.01,0,G19*K15) -> 2290.980841 | L17: =IF($G$33<0.01,0,G20*L15) -> 1392.819517 | M17: =IF($G$33<0.01,0,G21*M15) -> 118.5900879 | N17: =IF($G$33<0.01,0,G22*N15) -> 2511.324522 | O17: =IF($G$33<0.01,0,G23*O15) -> 1307.02141 | P17: =SUM(J17:O17) -> 7766.203431 | S17: =IFERROR((SQRT(1.538+0.01125*G33+ (-17.93)/(27.84+11))),1) -> 1.307848324 | T17: =IFERROR((2.281+(-422.7 - 20.98*G33)/(435.4+(G33^2))),1) -> 1.836631777 | U17: =IFERROR((2.075 + 5.204 *(10^-5)*G33+(-710-8.422*G33)/(643.9+G33^2-G33)),1) -> 1.763231546 | V17: =IFERROR((1.032+0.01001*G33+7.365*(10^-8)*G33^3+7.736*(10^-14)*G33^5 - 2.268*(10^-17)* G33^ 6 -1.053*(10^-10)*G33^4 - 2.927*(10^-5)*G33^2),1) -> 1.515390604 | W17: =(IFERROR((EXP((23.51*G33+G33^2)/(6063+138*G33+G33^2))),1))*1.1 -> 1.433123261 | X17: =(IFERROR(((0.0225*G33)+0.8426),1))*1.1 -> 2.321890395 | AB17: =IF(G33<0.01,0,(J14-1)/((J14-1)+1)) -> 0.235385341 | AC17: =IF(G33<0.01,0,(K14-1)/((K14-1)+1)) -> 0.4555250471 | AD17: =IF(G33<0.01,0,(L14-1)/((L14-1)+1)) -> 0.4328595118 | AE17: =IF(G33<0.01,0,(M14-1)/((M14-1)+1)) -> 0.3401041306 | AF17: =IF(G33<0.01,0,(N14-1)/((N14-1)+1)) -> 0.302223314 | AG17: =IF(G33<0.01,0,(O14-1)/((O14-1)+1)) -> 0.5693164491
F18: Chronic Obstructive pulmonary Disease (COD) | G18: 1614.379085 | I18: DALYs Upper Limit) | J18: =IF($G$33<0.01,0,G18*J16) -> 380.0011714 | K18: =IF($G$33<0.01,0,G19*K16) -> 5430.573111 | L18: =IF($G$33<0.01,0,G20*L16) -> 4192.796056 | M18: =IF($G$33<0.01,0,G21*M16) -> 506.8218417 | N18: =IF($G$33<0.01,0,G22*N16) -> 3265.196981 | O18: =IF($G$33<0.01,0,G23*O16) -> 1413.988566 | P18: 15189.37773
F19: Ischemic Heart Disease(IHD) | G19: 11921.56863 | I19: Health Co-Benefit | S19: =IF(S16<0,0,S16) -> 1.099030473 | T19: =IF(T16<0,0,T16) -> 1.237885879 | U19: 1.167942012 | V19: 1.086460754 | W19: 1.302839329 | X19: 2.11080945
F20: Cerebrovascular disease (Stroke) | G20: 9686.27451 | I20: Averted DALYs (Lower Limit) | J20: =J10-J17 -> 1.349326058 | K20: 8.494485322 | L20: 7.704725764 | M20: 1.442316926 | N20: 21.5502386 | O20: 7.912481766 | P20: =SUM(J20:O20) -> 48.45357443 | S20: =IF(S17<0,0,S17) -> 1.307848324 | T20: 1.836631777 | U20: 1.763231546 | V20: 1.515390604 | W20: 1.433123261 | X20: 2.321890395
F21: Lung Cancer (LC) | G21: 1490.196078 | I21: Averted DALYs Upper Limit) | J21: 2.570184417 | K21: 17.85980577 | L21: 13.96452613 | M21: 3.011398246 | N21: 19.591126 | O21: 7.193165242 | P21: =SUM(J21:O21) -> 64.19020581
F22: Acute Lower Respiratory Infections (ALRI) | G22: 10803.92157 | I22: Local Economy Improvement
F23: Tuberculosis and Bronchus (TB) | G23: 2483.660131 | I23: Health Care Cost Savings ($/y) | J23: =P21*$G$37 -> 109123.3499 | S23: =J4 -> COPD | T23: =K4 -> IHD | U23: =L4 -> Stroke | V23: LC | W23: =N4 -> ALRI | X23: =O4 -> TB | Y23: Total | Z23: DALYs
G24: =SUM(G18:G23) -> 38000 | I24: Unemployment Rate Reduction (%) | J24: =0.3705*((J23/(pop+popchild))/G37)*100 -> 0.001333415075 | S24: =J20 -> 1.349326058 | T24: 8.494485322 | U24: 7.704725764 | V24: 1.442316926 | W24: 21.5502386 | X24: 7.912481766 | Y24: 48.45357443 | Z24: =#REF! -> 
E25: PM Emissions | S25: 2.570184417 | T25: 17.85980577 | U25: 13.96452613 | V25: 3.011398246 | W25: 19.591126 | X25: 7.193165242 | Y25: 64.19020581 | Z25: =#REF! -> 
F26: Baseline Scenario | S26: =AVERAGE(S24:S25) -> 1.959755238 | T26: =AVERAGE(T24:T25) -> 13.17714555 | U26: 10.83462595 | V26: 2.226857586 | W26: 20.5706823 | X26: 7.552823504 | Y26: 56.32189012
F27: PM emissions (t/y) | G27: 1300
F28: Population Weighted Concentration of PM (ug/m3) | G28: 57 | S28: =#REF! ->  | T28: =#REF! ->  | U28: =#REF! ->  | V28: =#REF! ->  | W28: =#REF! ->  | X28: =#REF! ->  | Y28: =#REF! -> 
F29: Co-Benefits Scenario | S29: =#REF! ->  | T29: =#REF! ->  | U29: =#REF! ->  | V29: =#REF! ->  | W29: =#REF! ->  | X29: =#REF! ->  | Y29: =#REF! -> 
F30: Number of HOBs | G30: 1 | S30: =AVERAGE(S28:S29) ->  | T30: =AVERAGE(T28:T29) -> 
F31: Reduction in PM from the Co-benefits Scenario (t/y) | G31: =IF(H33>G27,G27,H33) -> 14.48554821
F32: Reduction in PM from the Co-benefits Scenario (ug/m3) | G32: =(G31/G27)*G28 -> 0.6351355755
F33: Co-benefits Scenario Concentration of PM (ug/m3) | G33: =IF((G28-G32)<0,0.001,G28-G32) -> 56.36486442 | H33: ='Co-benefits'!$K$8/1000*G30 -> 14.48554821 | S33: GHG (t/y) | T33: ='Co-benefits'!K6 -> 369.1912842
S34: AP(t/y) | T34: =ROUND('Health1 (5)'!$U$42,0) -> 14
E35: Local Economy | S35: AD | T35: =ROUND('Health1 (5)'!$T$43,0) -> 64
F36: Baseline Scenario | S36: SO2 (kg/y) | T36: ='Co-benefits'!K7 -> 3736.168742
F37: Per Capita Gross Domestic Product, GDP ($/y) | G37: 1700 | S37: PM (kg/y) | T37: ='Co-benefits'!K8 -> 14485.54821
F38: Unemployment rate(%) | G38: 6.36 | S38: CO (kg/y) | T38: ='Co-benefits'!K9 -> 0
S39: NOx (kg/y) | T39: ='Co-benefits'!K10 -> 563.2830411
U42: =$T$35 -> 64
T43: =$T$34*G30 -> 14 | U43: =$T$33*G30 -> 369.1912842
U44: =700*G30 -> 700

Sheet Health1 (5)
E3: Exposure Level | I3: Results
F4: Adult | G4: 1616477 | J4: COPD | K4: IHD | L4: Stroke | M4: LC | N4: ALRI | O4: TB | P4: Total | S4: =IFERROR((1.007+0.001675*G28+2.848*(10^-10)*G28^3-7.654*(10^-7)*G28^2),1) -> 1.100040958 | T4: =IFERROR(((41.12+G28-421.9/(3.363+G28))^0.09225-0.2773),1) -> 1.238978698 | U4: =IFERROR(((1.199+0.03729*G28)^0.13),1) -> 1.169028054 | V4: =IFERROR((0.9849+0.001803*G28-2.049*(10^-8)*G28^2),1) -> 1.087604428 | W4: =IFERROR((EXP((23.51*G28+G28^2)/(6063+138*G28+G28^2))),1) -> 1.306233881 | X4: =IFERROR(((0.0225*G28)+0.8426),1) -> 2.1251
F5: Child (0-5) | G5: 167099 | I5: Baseline Scenario | S5: =IFERROR((SQRT(1.538+0.01125*G28+ (-17.93)/(27.84+11))),1) -> 1.310577168 | T5: =IFERROR((2.281+(-422.7 - 20.98*G28)/(435.4+(G28^2))),1) -> 1.841699164 | U5: =IFERROR((2.075 + 5.204 *(10^-5)*G28+(-710-8.422*G28)/(643.9+G28^2-G28)),1) -> 1.767725137 | V5: =IFERROR((1.032+0.01001*G28+7.365*(10^-8)*G28^3+7.736*(10^-14)*G28^5 - 2.268*(10^-17)* G28^ 6 -1.053*(10^-10)*G28^4 - 2.927*(10^-5)*G28^2),1) -> 1.520045457 | W5: =(IFERROR((EXP((23.51*G28+G28^2)/(6063+138*G28+G28^2))),1))*1.1 -> 1.436857269 | X5: =(IFERROR(((0.0225*G28)+0.8426),1))*1.1 -> 2.33761
I6: Relative Risk (Lower Limit) | J6: =IF(S7<1,1,S7) -> 1.100040958 | K6: 1.238978698 | L6: 1.169028054 | M6: 1.087604428 | N6: 1.306233881 | O6: 2.1251
I7: Relative Risk (Upper Limit) | J7: 1.310577168 | K7: 1.841699164 | L7: 1.767725137 | M7: 1.520045457 | N7: 1.436857269 | O7: 2.33761 | S7: =IF(saving=0,1,S4) -> 1.100040958 | T7: 1.238978698 | U7: 1.169028054 | V7: 1.087604428 | W7: 1.306233881 | X7: 2.1251
E8: Deaths and DALYs (Baseline) | I8: PAF (Lower Limit) | J8: =IF((J6-1)/((J6-1)+1)<0,0,(J6-1)/((J6-1)+1)) -> 0.09094293954 | K8: 0.1928836211 | L8: 0.1445885352 | M8: 0.08054806117 | N8: 0.2344403136 | O8: 0.529433909 | S8: 1.310577168 | T8: 1.841699164 | U8: 1.767725137 | V8: 1.520045457 | W8: 1.436857269 | X8: 2.33761
F9: Background Mortality Rate | G9: (per 100000) | I9: PAF (Upper Limit) | J9: 0.2369773986 | K9: 0.4570231558 | L9: 0.4343011937 | M9: 0.3421249373 | N9: 0.3040366487 | O9: 0.5722126445
F10: Chronic Obstructive pulmonary Disease (COD) | G10: 23 | I10: Health Burden (Lower Limit) | J10: =G10/100000*pop*J8 -> 33.81164912 | K10: =G11/100000*pop*K8 -> 470.4940332 | L10: =G12/100000*pop*L8 -> 256.3952736 | M10: =G13/100000*pop*M8 -> 23.61902161 | N10: =G14/100000*popchild*N8 -> 108.4435207 | O10: =G15/100000*pop*O8 -> 134.3633847 | P10: =SUM(J10:O10) -> 1027.126883
F11: Ischemic Heart Disease!(IHD) | G11: 150.9 | I11: Health Burden(Upper Limit) | J11: =G10/100000*pop*J9 -> 88.10575829 | K11: =G11/100000*pop*K9 -> 1114.800037 | L11: =G12/100000*pop*L9 -> 770.135566 | M11: =G13/100000*pop*M9 -> 100.3209286 | N11: =G14/100000*popchild*N9 -> 140.6362417 | O11: =G15/100000*pop*O9 -> 145.2200669 | P11: =SUM(J11:O11) -> 2359.218598
F12: Cerebrovascular disease (Stroke) | G12: 109.7 | I12: DALYs (Lower Limit) | J12: =G18*J8 -> 146.8163795 | K12: =G19*K8 -> 2299.475326 | L12: =G20*L8 -> 1400.524243 | M12: =G21*M8 -> 120.0324049 | N12: =G22*N8 -> 2532.87476 | O12: =G23*O8 -> 1314.933892 | P12: =SUM(J12:O12) -> 7814.657005
F13: Lung Cancer (LC) | G13: 18.14 | I13: DALYs Upper Limit) | J13: =G18*J9 -> 382.5713558 | K13: =G19*K9 -> 5448.432917 | L13: =G20*L9 -> 4206.760582 | M13: =G21*M9 -> 509.83324 | N13: =G22*N9 -> 3284.788107 | O13: =G23*O9 -> 1421.181732 | P13: =SUM(J13:O13) -> 15253.56793
F14: Acute Lower Respiratory Infections (ALRI) | G14: 276.82 | I14: Co-benefits Scenario
F15: Tuberculosis and Bronchus (TB) | G15: 15.7 | I15: Relative Risk (Lower Limit) | J15: =IF(S16<1,1,S16) -> 1.099030473 | K15: 1.237885879 | L15: 1.167942012 | M15: 1.086460754 | N15: 1.302839329 | O15: 2.11080945
I16: Relative Risk (Upper Limit) | J16: 1.307848324 | K16: 1.836631777 | L16: 1.763231546 | M16: 1.515390604 | N16: 1.433123261 | O16: 2.321890395 | S16: =IFERROR((1.007+0.001675*G33+2.848*(10^-10)*G33^3-7.654*(10^-7)*G33^2),1) -> 1.099030473 | T16: =IFERROR(((41.12+G33-421.9/(3.363+G33))^0.09225-0.2773),1) -> 1.237885879 | U16: =IFERROR(((1.199+0.03729*G33)^0.13),1) -> 1.167942012 | V16: =IFERROR((0.9849+0.001803*G33-2.049*(10^-8)*G33^2),1) -> 1.086460754 | W16: =IFERROR((EXP((23.51*G33+G33^2)/(6063+138*G33+G33^2))),1) -> 1.302839329 | X16: =IFERROR(((0.0225*G33)+0.8426),1) -> 2.11080945
F17: DALYs | I17: PAF (Lower Limit) | J17: =IF((J15-1)/((J15-1)+1)<0,0,(J15-1)/((J15-1)+1)) -> 0.09010712218 | K17: 0.1921710903 | L17: 0.143793108 | M17: 0.0795801906 | N17: 0.2324456454 | O17: 0.526248094 | S17: =IFERROR((SQRT(1.538+0.01125*G33+ (-17.93)/(27.84+11))),1) -> 1.307848324 | T17: =IFERROR((2.281+(-422.7 - 20.98*G33)/(435.4+(G33^2))),1) -> 1.836631777 | U17: =IFERROR((2.075 + 5.204 *(10^-5)*G33+(-710-8.422*G33)/(643.9+G33^2-G33)),1) -> 1.763231546 | V17: =IFERROR((1.032+0.01001*G33+7.365*(10^-8)*G33^3+7.736*(10^-14)*G33^5 - 2.268*(10^-17)* G33^ 6 -1.053*(10^-10)*G33^4 - 2.927*(10^-5)*G33^2),1) -> 1.515390604 | W17: =(IFERROR((EXP((23.51*G33+G33^2)/(6063+138*G33+G33^2))),1))*1.1 -> 1.433123261 | X17: =(IFERROR(((0.0225*G33)+0.8426),1))*1.1 -> 2.321890395
F18: Chronic Obstructive pulmonary Disease (COD) | G18: 1614.379085 | I18: PAF (Upper Limit) | J18: 0.235385341 | K18: 0.4555250471 | L18: 0.4328595118 | M18: 0.3401041306 | N18: 0.302223314 | O18: 0.5693164491
F19: Ischemic Heart Disease(IHD) | G19: 11921.56863 | I19: Health Burden (Lower Limit) | J19: =G10/100000*pop*J17 -> 33.50090083 | K19: =G11/100000*pop*K17 -> 468.7559825 | L19: =G12/100000*pop*L17 -> 254.9847623 | M19: =G13/100000*pop*M17 -> 23.33521396 | N19: =G14/100000*popchild*N17 -> 107.5208601 | O19: =G15/100000*pop*O17 -> 133.5548666 | P19: =SUM(J19:O19) -> 1021.652586 | S19: =IF(saving=0,1,S16) -> 1.099030473 | T19: 1.237885879 | U19: 1.167942012 | V19: 1.086460754 | W19: 1.302839329 | X19: 2.11080945
F20: Cerebrovascular disease (Stroke) | G20: 9686.27451 | I20: Health Burden(Upper Limit) | J20: =G10/100000*pop*J18 -> 87.51384767 | K20: =G11/100000*pop*K18 -> 1111.145754 | L20: =G12/100000*pop*L18 -> 767.5790673 | M20: =G13/100000*pop*M18 -> 99.72836956 | N20: =G14/100000*popchild*N18 -> 139.7974593 | O20: =G15/100000*pop*O18 -> 144.4850505 | P20: 2350.249549 | S20: =IF(saving=0,1,S17) -> 1.307848324 | T20: 1.836631777 | U20: 1.763231546 | V20: 1.515390604 | W20: 1.433123261 | X20: 2.321890395
F21: Lung Cancer (LC) | G21: 1490.196078 | I21: Deaths Prevented (Lower Limit) | J21: =J10-J19 -> 0.3107482924 | K21: =K10-K19 -> 1.738050682 | L21: =L10-L19 -> 1.4105113 | M21: 0.283807649 | N21: 0.9226605997 | O21: 0.8085180846 | P21: 5.474296608
F22: Acute Lower Respiratory Infections (ALRI) | G22: 10803.92157 | I22: Deaths Prevented Upper Limit) | J22: =J11-J20 -> 0.5919106163 | K22: =K11-K20 -> 3.65428233 | L22: 2.556498766 | M22: 0.592558987 | N22: 0.8387823634 | O22: 0.7350164405 | P22: 8.969049503
F23: Tuberculosis and Bronchus (TB) | G23: 2483.660131 | I23: Averted DALYs (Lower Limit) | J23: =J12-(J17*G18) -> 1.349326058 | K23: =K12-(K17*G19) -> 8.494485322 | L23: =L12-(L17*G20) -> 7.704725764 | M23: =M12-(M17*G21) -> 1.442316926 | N23: =N12-(N17*G22) -> 21.5502386 | O23: =O12-(O17*G23) -> 7.912481766 | P23: 48.45357443 | S23: =J4 -> COPD | T23: =K4 -> IHD | U23: =L4 -> Stroke | V23: LC | W23: =N4 -> ALRI | X23: =O4 -> TB | Y23: Total | Z23: DALYs
I24: Averted DALYs Upper Limit) | J24: =J13-(J18*G18) -> 2.570184417 | K24: =K13-(K18*G19) -> 17.85980577 | L24: =L13-(L18*G20) -> 13.96452613 | M24: =M13-(M18*G21) -> 3.011398246 | N24: =N13-(N18*G22) -> 19.591126 | O24: =O13-(O18*G23) -> 7.193165242 | P24: 64.19020581 | S24: =J23 -> 1.349326058 | T24: 8.494485322 | U24: 7.704725764 | V24: 1.442316926 | W24: 21.5502386 | X24: 7.912481766 | Y24: 48.45357443 | Z24: =#REF! -> 
E25: PM Emissions | S25: 2.570184417 | T25: 17.85980577 | U25: 13.96452613 | V25: 3.011398246 | W25: 19.591126 | X25: 7.193165242 | Y25: 64.19020581 | Z25: =#REF! -> 
F26: Baseline Scenario | S26: =AVERAGE(S24:S25) -> 1.959755238 | T26: =AVERAGE(T24:T25) -> 13.17714555 | U26: 10.83462595 | V26: 2.226857586 | W26: 20.5706823 | X26: 7.552823504 | Y26: 56.32189012
F27: PM emissions (t/y) | G27: 1300
F28: Population weighted Concentration of PM (ug/m3) | G28: 57 | S28: =J10 -> 33.81164912 | T28: 470.4940332 | U28: 256.3952736 | V28: 23.61902161 | W28: 108.4435207 | X28: 134.3633847 | Y28: 1027.126883
F29: Co-Benefits Scenario | S29: 88.10575829 | T29: 1114.800037 | U29: 770.135566 | V29: 100.3209286 | W29: 140.6362417 | X29: 145.2200669 | Y29: 2359.218598
F30: Number of HOBs | G30: 1 | S30: =AVERAGE(S28:S29) -> 60.9587037 | T30: =AVERAGE(T28:T29) -> 792.6470349 | U30: 513.2654198 | V30: 61.96997508 | W30: 124.5398812 | X30: 139.7917258 | Y30: 1693.17274
F31: Reduction in PM from the Co-benefits Scenario (t/y) | G31: 14.48554821 | S31: Swimbed | W31: =$T$43 -> 64.19020581
F32: Reduction in PM from the Co-benefits Scenario (ug/m3) | G32: =(G31/G27)*G28 -> 0.6351355755
F33: Co-benefits Scenario Concentration of PM (ug/m3) | G33: =IF((G28-G32)<0,0.001,G28-G32) -> 56.36486442 | S33: GHG (t/y) | T33: ='Co-benefits'!$K$6 -> 369.1912842
S34: AP(Mt/y) | T34: ='Co-benefits'!$K$8/1000 -> 14.48554821
S35: AD | T35: =Health!$P$21 -> 64.19020581
S36: SO2 (kg/y) | T36: 3736.168742
S37: PM (kg/y) | T37: 14485.54821
S38: CO (kg/y) | T38: 0
S39: NOx (kg/y) | T39: 563.2830411
U42: =$T$34*S50 -> 14.48554821 | V42: 210.5128168 | W42: 213.6068532
T43: =$T$35 -> 64.19020581 | U43: =$T$33*G30*S50 -> 369.1912842 | V43: 3079.949982 | W43: 3626.008759
T44: =$T$43 -> 64.19020581 | U44: =-Health!$J$23/1000 -> -109.1233499 | V44: -291.7241246 | W44: -296.0117736
T45: 61890.5693 | U45: =U43/T43 -> 5.751520493
S46: 39293000
S47: 802951.9259
S48: =IF(S46<S47,1,S46/S47) -> 48.93568186
S50: =Health!$G$30 -> 1
O51: 0.0004222855554
O52: 7.081580893e-05
O53: 1.306357725e-05
O54: 1.416316179e-05
O55: 8.164735779e-06

Sheet Output
C1: Push "RUN" button once you made a new scenario to see the new changes. 1--->2--->3 | Z1: 2
H2: Results
C3: Scenario Definition | H3: Scenarios | I3: Base | J3: Coal Storage | K3: Cyclone | L3: Air preheater | M3: Coal Feeder | N3: Air feed Adj. | O3: Scenarios combine | P3: Difference
C4: Coal Storage | H4: Energy Balance
C5: Storage period | H5: Heat output (kWh) | I5: 260 | J5: 260 | K5: 260 | L5: 260 | M5: 260 | N5: 260 | O5: 260
A6: Input Data | C6: Number of Days | D6: Default | E6: 0 | H6: Heat Input (kWh) | I6: 483.2825928 | J6: 474.4002991 | K6: 483.2825928 | L6: 408.0681763 | M6: 371.2239685 | N6: 376.4285889 | O6: 347.3717041
A7: Scenario Analysis | C7: Number of Days | D7: New | H7: Heat Loss | Z7: Conventional
A8: Environmental Co-Benefits | C8: Click on the option button to unlock the cell "Gray color" | H8: 1) Heat loss in dry exhaust gas (%) | I8: 28.70544052 | J8: 28.70544052 | K8: 28.70544052 | L8: 19.58828545 | M8: 13.03898335 | N8: 13.96660137 | O8: 9.611441612 | Z8: High efficiency
A9: Health & Economic Co-Benefits | C9: Moisture content of coal | H9: 2) Heat loss due to formation of water from H2 in fuel (%) | I9: 6.833244801 | J9: 6.833244801 | K9: 6.833244801 | L9: 6.568866253 | M9: 6.833244801 | N9: 6.833244801 | O9: 6.573945045 | Z9: 3
A10: Database | C10: Moisture content (%) | D10: Default | E10: =Input!E42 -> 33.3 | H10: 3) Heat loss due to moisture in fuel (%) | I10: 5.618445396 | J10: 4.77483511 | K10: 5.618445396 | L10: 5.401067734 | M10: 5.618445396 | N10: 5.618445396 | O10: 4.593645573
A11: Calculation Method | C11: Moisture content (%) | D11: New | E11: 28.3 | H11: 4) Heat loss due to moisture in air (%) | I11: 0.9986465573 | J11: 0.9986465573 | K11: 0.9986465573 | L11: 0.681465745 | M11: 0.4327468276 | N11: 0.466035068 | O11: 0.3208608329
H12: 5) Heat loss due to incomplete combustion (%) | I12: 5.333103672e-06 | J12: 5.333103672e-06 | K12: 5.333103672e-06 | L12: 5.333103672e-06 | M12: 0 | N12: 0 | O12: 0.01432949491 | Z12: Traveling Grate Stoker
H13: 6) Heat loss due to radiation and convection (%) | I13: 3.604436874 | J13: 3.604436874 | K13: 3.604436874 | L13: 3.604436874 | M13: 3.604436874 | N13: 3.604436874 | O13: 3.604436874 | Z13: Reciprocating Grate
C14: Cyclone | H14: 7) Heat loss due to unburnt in fly ash (%) | I14: 0.1636770517 | J14: 0 | K14: 0.1636770517 | L14: 0.1636770517 | M14: 0.1363975406 | N14: 0.1636770517 | O14: 0.1363975406 | Z14: Vibrating Stoker
C15: Type of cyclone | H15: 8) Heat loss due to unburnt in bottom ash (%) | I15: 0.2773519456 | J15: 0.2773519456 | K15: 0.2773519456 | L15: 0.2773519456 | M15: 0.297162801 | N15: 0.2773519456 | O15: 0.297162801 | Z15: Spreader Stoker
C16: Removal efficiency (%) | E16: 90 | H16: Total heat loss (%) | I16: 46.20124817 | J16: 45.1939621 | K16: 46.20124817 | L16: 36.28515625 | M16: 29.96141815 | N16: 30.9297924 | O16: 25.15221977 | Z16: Pulverized Boiler
H17: Thermal Efficiency (%) | I17: 53.79875183 | J17: 54.8060379 | K17: 53.79875183 | L17: 63.71484375 | M17: 70.03858185 | N17: 69.07020569 | O17: 74.84777832 | Z17: Fluidized-bed Boiler
C18: Air Preheater | H18: Mass Flow | Z18: 4
C19: Inlet Air Temp. (0C) | D19: 40 | H19: Fuel flow rate (kg/h) | I19: 105.5010223 | J19: 103.5620117 | K19: 105.5010223 | L19: 89.08164978 | M19: 81.03852081 | N19: 82.17469788 | O19: 75.8315506
H20: Air flow rate (kg/h) | I20: 2512.826172 | J20: 2466.642822 | K20: 2512.826172 | L20: 2121.749268 | M20: 836.4103394 | N20: 913.3782959 | O20: 842.8737183
H21: Exhaust gas flow rate (kg/h) | I21: 2610.129883 | J21: 2562.158203 | K21: 2610.129883 | L21: 2203.90918 | M21: 910.7023926 | N21: 989.1680908 | O21: 912.392334
C22: Coal Feeder | H22: GHG emissions and Air Pollution (kg/h)
C23: Type of Feeder | H23: GHG | I23: 181.9208221 | J23: 178.5772858 | K23: 181.9208221 | L23: 153.6080475 | M23: 139.7388763 | N23: 141.6980438 | O23: 130.7602234
H24: GHG emission from electricity | I24: 0 | J24: 0 | K24: 0 | L24: 0 | M24: 0 | N24: 0.1368631721 | O24: 0.1906700134
C25: Air Feed Adjustment | H25: SO2 | I25: 1.848628879 | J25: 1.817636132 | K25: 1.848628879 | L25: 1.560922503 | M25: 1.420094252 | N25: 1.439896226 | O25: 1.328848839
C26: Excess Air (%) | D26: 40 | H26: PM | I26: 2.124773741 | J26: 2.085722446 | K26: 0.2124774307 | L26: 1.794090271 | M26: 1.509695172 | N26: 1.654985309 | O26: 1.412692666
C27: Electricity consumption (W) | D27: 135.1067963 | H27: CO | I27: 0 | J27: 0 | K27: 0 | L27: 0 | M27: 0 | N27: 0 | O27: 0
H28: NOx | I28: 0.2775605321 | J28: 0.2724592388 | K28: 0.2775605321 | L28: 0.2343631238 | M28: 0.2132026255 | N28: 0.2161917686 | O28: 0.1995037049 | Z28: kg/h
Z29: kg/t
Z30: kg/kWh
Z31: 1

Sheet effectiveness
C1: y
A2: Coal Storage | B2: =effectiveness!E35 -> 0.9614733487 | C2: 1
A3: Cyclone | B3: 0 | C3: 0
A4: Air preheater | B4: =effectiveness!G35 -> 0.9999994165 | C4: 1
A5: Coal Feeder | B5: =effectiveness!H35 -> 1.142672195 | C5: 1
A6: Air feed Adj. | B6: =effectiveness!I35 -> 0.9999999042 | C6: 1
D27: =Output!I3 -> Base | E27: =Output!J3 -> Coal Storage | F27: =Output!K3 -> Cyclone | G27: =Output!L3 -> Air preheater | H27: =Output!M3 -> Coal Feeder | I27: =Output!N3 -> Air feed Adj.
C29: Total Emissions (kg/h) | D29: =SUM(Output!I25:I28) -> 4.250963151 | E29: =SUM(Output!J25:J28) -> 4.175817817 | F29: =SUM(Output!K25:K28) -> 2.338666841 | G29: =SUM(Output!L25:L28) -> 3.589375898 | H29: =SUM(Output!M25:M28) -> 3.142992049 | I29: =SUM(Output!N25:N28) -> 3.311073303
C30: Elasticity
C31: SO2 | E31: =((Output!J25-Output!I25)/((Output!I25+Output!J25)/2))/((Output!J23-Output!I23)/((Output!I23+Output!J23)/2)) -> 0.9114506205 | F31: =((Output!K25-Output!I25)/((Output!I25+Output!K25)/2))/((Output!K23-Output!I23)/((Output!I23+Output!K23)/2)) ->  | G31: =((Output!L25-Output!I25)/((Output!I25+Output!L25)/2))/((Output!L23-Output!I23)/((Output!I23+Output!L23)/2)) -> 0.9999993252 | H31: =((Output!M25-Output!I25)/((Output!I25+Output!M25)/2))/((Output!M23-Output!I23)/((Output!I23+Output!M23)/2)) -> 0.9997187213 | I31: =((Output!N25-Output!I25)/((Output!I25+Output!N25)/2))/((Output!N23-Output!I23)/((Output!I23+Output!N23)/2)) -> 0.9999998583
C32: PM | E32: =((Output!J26-Output!I26)/((Output!I26+Output!J26)/2))/((Output!J23-Output!I23)/((Output!I23+Output!J23)/2)) -> 0.999997908 | F32: =((Output!K26-Output!I26)/((Output!I26+Output!K26)/2))/((Output!K23-Output!I23)/((Output!I23+Output!K23)/2)) ->  | G32: =((Output!L26-Output!I26)/((Output!I26+Output!L26)/2))/((Output!L23-Output!I23)/((Output!I23+Output!L23)/2)) -> 0.9999994334 | H32: =((Output!M26-Output!I26)/((Output!I26+Output!M26)/2))/((Output!M23-Output!I23)/((Output!I23+Output!M23)/2)) -> 1.290504958 | I32: =((Output!N26-Output!I26)/((Output!I26+Output!N26)/2))/((Output!N23-Output!I23)/((Output!I23+Output!N23)/2)) -> 0.9999999296
C33: CO | E33: =((Output!J27-Output!I27)/((Output!I27+Output!J27)/2))/((Output!J23-Output!I23)/((Output!I23+Output!J23)/2)) ->  | F33: =((Output!K27-Output!I27)/((Output!I27+Output!K27)/2))/((Output!K23-Output!I23)/((Output!I23+Output!K23)/2)) ->  | G33: =((Output!L27-Output!I27)/((Output!I27+Output!L27)/2))/((Output!L23-Output!I23)/((Output!I23+Output!L23)/2)) ->  | H33: =((Output!M27-Output!I27)/((Output!I27+Output!M27)/2))/((Output!M23-Output!I23)/((Output!I23+Output!M23)/2)) ->  | I33: =((Output!N27-Output!I27)/((Output!I27+Output!N27)/2))/((Output!N23-Output!I23)/((Output!I23+Output!N23)/2)) -> 
C34: NOx | E34: =((Output!J28-Output!I28)/((Output!I28+Output!J28)/2))/((Output!J23-Output!I23)/((Output!I23+Output!J23)/2)) -> 0.999997542 | F34: =((Output!K28-Output!I28)/((Output!I28+Output!K28)/2))/((Output!K23-Output!I23)/((Output!I23+Output!K23)/2)) ->  | G34: =((Output!L28-Output!I28)/((Output!I28+Output!L28)/2))/((Output!L23-Output!I23)/((Output!I23+Output!L23)/2)) -> 0.9999998947 | H34: =((Output!M28-Output!I28)/((Output!I28+Output!M28)/2))/((Output!M23-Output!I23)/((Output!I23+Output!M23)/2)) -> 0.9999999957 | I34: =((Output!N28-Output!I28)/((Output!I28+Output!N28)/2))/((Output!N23-Output!I23)/((Output!I23+Output!N23)/2)) -> 1.000000015
C35: Elasticity (mid-point method) | E35: =((E29-D29)/((D29+E29)/2))/((Output!J23-Output!I23)/((Output!I23+Output!J23)/2)) -> 0.9614733487 | F35: =((F29-D29)/((D29+F29)/2))/((Output!K23-Output!I23)/((Output!I23+Output!K23)/2)) ->  | G35: =((G29-D29)/((D29+G29)/2))/((Output!L23-Output!I23)/((Output!I23+Output!L23)/2)) -> 0.9999994165 | H35: =((H29-D29)/((D29+H29)/2))/((Output!M23-Output!I23)/((Output!I23+Output!M23)/2)) -> 1.142672195 | I35: =((I29-D29)/((D29+I29)/2))/((Output!N23-Output!I23)/((Output!I23+Output!N23)/2)) -> 0.9999999042
C36: Elasticity (Point-Slope) | E36: =((E29-D29)/E29)/((Output!J23-Output!I23)/Output!J23) -> 0.9611266982 | F36: =((F29-D29)/F29)/((Output!K23-Output!I23)/Output!K23) ->  | G36: =((G29-D29)/G29)/((Output!L23-Output!I23)/Output!L23) -> 0.9999993627 | H36: =((H29-D29)/H29)/((Output!M23-Output!I23)/Output!M23) -> 1.167819676 | I36: =((I29-D29)/I29)/((Output!N23-Output!I23)/Output!N23) -> 0.9999998906
C38: https://pressbooks.bccampus.ca/uvicecon103/chapter/4-2-elasticity/
E41: Coal Storage | F41: Cyclone | G41: Air preheater | H41: Coal Feeder | I41: Air feed Adj.
C42: GHG | F42: 0 | G42: 1 | H42: 1 | I42: 1
C43: AP | F43: 0 | G43: =G35 -> 0.9999994165 | H43: =H35 -> 1.142672195 | I43: =I35 -> 0.9999999042
E46: x | F46: y
E47: 1 | F47: =$E$35 -> 0.9614733487

Sheet DF (hidden)
A1: Boiler Power | B1: =Input!E4 -> 260 | E1: net heat generation in needed (kW) | F1: 260
E2: theoretical air requirement (kg/kg of coal) | F2: 7.939342586
E3: theoretical (CO2%)t | F3: 19.43090248
A4: Utility Demand | E4: excess air (%) | F4: 40
A5: mass flow of output hot water (kg/s) | B5: =Input!E8 -> 0 | E5: actual air supplied (kg/kg of coal) | F5: 11.11507962
A6: temperature of output hot water (℃) | B6: =Input!E9 -> 0 | E6: dry exhaust gas (kg/kg of coal) | F6: 12.03738022
A7: temperature of input hot water (℃) | B7: =Input!E10 -> 0 | E7: heat losses (%)
E8: 1) heat loss in dry exhaust gas | F8: 13.96660137
A9: Building thermal load demand | E9: 2) heat loss due to formation of water from H2 in fuel | F9: 6.833244801
A10: heat flux density (J/(hour*m^3*℃)) | B10: =Input!E13 -> 0 | E10: 3) heat loss due to moisture in fuel | F10: 5.618445396
A11: volume of building (m^3) | B11: =Input!E14 -> 0 | E11: 4) heat loss due to moisture in air | F11: 0.466035068
A12: outdoor temperature (℃) | B12: =Input!E15 -> 0 | E12: 5) heat loss due to incomplete combustion | F12: 0
A13: indoor temperature (℃) | B13: =Input!E16 -> 0 | E13: 6) heat loss due to radiation and convenction | F13: 3.604436874
E14: 7) heat loss due to unburnt in fly ash | F14: 0.1636770517
E15: 8) heat loss due to unburnt in bottom ash | F15: 0.2773519456
A16: type of boiler | B16: hand-feed | E16: total heat loss | F16: 30.9297924
A17: boiler power (MW) | B17: =Input!E28 -> 0.6 | E17: efficient of boiler % | F17: 69.07020569
A18: surface temperature of boiler(℃) | B18: =Input!E29 -> 60 | E18: heat supplied from fuel combustion (kW) | F18: 376.4285889
A19: total surface area of boiler(m^2) | B19: =Input!E30 -> 18 | E19: mass flow of input & output
E20: mass flow of fuel (kg/hr) | F20: 82.17469788
E21: mass flow of air (kg/hr) | F21: 913.3782959
E22: mass flow of exhaust gas (kg/hr) | F22: 989.1680908
E23: emission of boiler combustion
A24: Carbon | B24: =Input!E36 -> 63.3 | E24: GHG | F24: 141.6980438 | G24: 1724.351318 | H24: 0.5449924762
A25: Hydrogen | B25: =Input!E37 -> 4.5 | E25: SO2 | F25: 1.439896226 | G25: 17.52237931 | H25: 0.005538062407
A26: Sulphur | B26: =Input!E38 -> 1.1 | E26: fly ash | F26: 1.654985309 | G26: 20.13984108 | H26: 0.00636532811
A27: Nitrogen | B27: =Input!E39 -> 1.1 | E27: CO | F27: 0 | G27: 0 | H27: 0
A28: Oxygen | B28: =Input!E40 -> 19 | E28: PM10 | F28: 0.2161917686 | G28: 2.630879879 | H28: 0.0008315068025
A29: Ash | B29: =Input!E41 -> 11.1 | E29: PM2.5
A30: Moisture | B30: =Input!E42 -> 33.3 | E30: NOx
A31: Low calorific value (kJ/kg) | B31: =Input!E43 -> 14687.328 | E31: ECO2 | F31: 0.1368631721 | G31: 1.665514946 | H31: 0.0005267446431
A32: Gross calorific value (kJ/kg) | B32: =Input!E44 -> 16491
A35: Excess air | B35: 40
A36: exhaust gas temperature(℃) | B36: =Input!E48 -> 190
A38: Componet analysis
A39: %CO2 | B39: =Input!E51 -> 0
A40: %O2 | B40: =Input!E52 -> 0
A41: %CO | B41: =Input!E53 -> 0
A42: exhaust gas temperature(℃) | B42: =Input!E54 -> 0
A45: Hours per year | B45: =Input!E57 -> 5000
A47: humidity in ambient air (kg/kg drg air) | B47: =Input!E20 -> 0.0204
A48: ambient temperature (℃) | B48: =Input!E21 -> 10
A49: wind velocity (m/s) | B49: =Input!E22 -> 3.5

Sheet APH (hidden)
A1: Boiler Power | B1: =Input!E4 -> 260 | E1: net heat generation in needed (kW) | F1: 260
E2: theoretical air requirement (kg/kg of coal) | F2: 7.939342586
E3: theoretical (CO2%)t | F3: 19.43090248
A4: Utility Demand | E4: excess air (%) | F4: 200
A5: mass flow of output hot water (kg/s) | B5: =Input!E8 -> 0 | E5: actual air supplied (kg/kg of coal) | F5: 23.81802776
A6: temperature of output hot water (℃) | B6: =Input!E9 -> 0 | E6: dry exhaust gas (kg/kg of coal) | F6: 24.74032784
A7: temperature of input hot water (℃) | B7: =Input!E10 -> 0 | E7: heat losses (%)
E8: 1) heat loss in dry exhaust gas | F8: 19.58828545
A9: Building thermal load demand | E9: 2) heat loss due to formation of water from H2 in fuel | F9: 6.568866253
A10: heat flux density (J/(hour*m^3*℃)) | B10: =Input!E13 -> 0 | E10: 3) heat loss due to moisture in fuel | F10: 5.401067734
A11: volume of building (m^3) | B11: =Input!E14 -> 0 | E11: 4) heat loss due to moisture in air | F11: 0.681465745
A12: outdoor temperature (℃) | B12: =Input!E15 -> 0 | E12: 5) heat loss due to incomplete combustion | F12: 5.333103672e-06
A13: indoor temperature (℃) | B13: =Input!E16 -> 0 | E13: 6) heat loss due to radiation and convenction | F13: 3.604436874
E14: 7) heat loss due to unburnt in fly ash | F14: 0.1636770517
E15: 8) heat loss due to unburnt in bottom ash | F15: 0.2773519456
A16: type of boiler | B16: hand-feed | E16: total heat loss | F16: 36.28515625
A17: boiler power (MW) | B17: =Input!E28 -> 0.6 | E17: efficient of boiler % | F17: 63.71484375
A18: surface temperature of boiler(℃) | B18: =Input!E29 -> 60 | E18: heat supplied from fuel combustion (kW) | F18: 408.0681763
A19: total surface area of boiler(m^2) | B19: =Input!E30 -> 18 | E19: mass flow of input & output
E20: mass flow of fuel (kg/hr) | F20: 89.08164978
E21: mass flow of air (kg/hr) | F21: 2121.749268
E22: mass flow of exhaust gas (kg/hr) | F22: 2203.90918
E23: emission of boiler combustion
A24: Carbon | B24: =Input!E36 -> 63.3 | E24: GHG | F24: 153.6080475 | G24: 1724.351196 | H24: 0.5908001826
A25: Hydrogen | B25: =Input!E37 -> 4.5 | E25: SO2 | F25: 1.560922503 | G25: 17.52237983 | H25: 0.00600354809
A26: Sulphur | B26: =Input!E38 -> 1.1 | E26: fly ash | F26: 1.794090271 | G26: 20.13984108 | H26: 0.006900347196
A27: Nitrogen | B27: =Input!E39 -> 1.1 | E27: CO | F27: 0 | G27: 0 | H27: 0
A28: Oxygen | B28: =Input!E40 -> 19 | E28: PM10 | F28: 0.2343631238 | G28: 2.630879879 | H28: 0.0009013966299
A29: Ash | B29: =Input!E41 -> 11.1 | E29: PM2.5
A30: Moisture | B30: =Input!E42 -> 33.3 | E30: NOx
A31: Low calorific value (kJ/kg) | B31: =Input!E43 -> 14687.328
A32: Gross calorific value (kJ/kg) | B32: =Input!E44 -> 16491
A35: Excess air | B35: =Input!E47 -> 200
A36: exhaust gas temperature(℃) | B36: =Input!E48 -> 190
A38: Componet analysis
A39: %CO2 | B39: =Input!E51 -> 0
A40: %O2 | B40: =Input!E52 -> 0
A41: %CO | B41: =Input!E53 -> 0
A42: exhaust gas temperature(℃) | B42: =Input!E54 -> 0
A45: Hours per year | B45: =Input!E57 -> 5000
A47: humidity in ambient air (kg/kg drg air) | B47: =Input!E20 -> 0.0204
A48: ambient temperature (℃) | B48: =Input!E21 -> 10
A49: wind velocity (m/s) | B49: =Input!E22 -> 3.5

Sheet basic (hidden)
A1: Boiler Power | B1: =Input!E4 -> 260 | E1: net heat generation in needed (kW) | F1: 260
E2: theoretical air requirement (kg/kg of coal) | F2: 7.939342586
E3: theoretical (CO2%)t | F3: 19.43090248
A4: Utility Demand | E4: excess air (%) | F4: 200
A5: mass flow of output hot water (kg/s) | B5: =Input!E8 -> 0 | E5: actual air supplied (kg/kg of coal) | F5: 23.81802776
A6: temperature of output hot water (℃) | B6: =Input!E9 -> 0 | E6: dry exhaust gas (kg/kg of coal) | F6: 24.74032784
A7: temperature of input hot water (℃) | B7: =Input!E10 -> 0 | E7: heat losses (%)
E8: 1) heat loss in dry exhaust gas | F8: 28.70544052
A9: Building thermal load demand | E9: 2) heat loss due to formation of water from H2 in fuel | F9: 6.833244801
A10: heat flux density (J/(hour*m^3*℃)) | B10: =Input!E13 -> 0 | E10: 3) heat loss due to moisture in fuel | F10: 5.618445396
A11: volume of building (m^3) | B11: =Input!E14 -> 0 | E11: 4) heat loss due to moisture in air | F11: 0.9986465573
A12: outdoor temperature (℃) | B12: =Input!E15 -> 0 | E12: 5) heat loss due to incomplete combustion | F12: 5.333103672e-06
A13: indoor temperature (℃) | B13: =Input!E16 -> 0 | E13: 6) heat loss due to radiation and convenction | F13: 3.604436874
E14: 7) heat loss due to unburnt in fly ash | F14: 0.1636770517
E15: 8) heat loss due to unburnt in bottom ash | F15: 0.2773519456
A16: type of boiler | B16: hand-feed | E16: total heat loss | F16: 46.20124817
A17: boiler power (MW) | B17: =Input!E28 -> 0.6 | E17: efficient of boiler % | F17: 53.79875183
A18: surface temperature of boiler(℃) | B18: =Input!E29 -> 60 | E18: heat supplied from fuel combustion (kW) | F18: 483.2825928
A19: total surface area of boiler(m^2) | B19: =Input!E30 -> 18 | E19: mass flow of input & output
E20: mass flow of fuel (kg/hr) | F20: 105.5010223
E21: mass flow of air (kg/hr) | F21: 2512.826172
E22: mass flow of exhaust gas (kg/hr) | F22: 2610.129883
E23: emission of boiler combustion | F23: kg/h | G23: kg/t | H23: ppm
A24: Carbon | B24: =Input!E36 -> 63.3 | E24: GHG | F24: 181.9208221 | G24: 1724.351318 | H24: 0.6996954698
A25: Hydrogen | B25: =Input!E37 -> 4.5 | E25: SO2 | F25: 1.848628879 | G25: 17.52237881 | H25: 0.007110111072
A26: Sulphur | B26: =Input!E38 -> 1.1 | E26: PM | F26: 2.124773741 | G26: 20.13984108 | H26: 0.008172206695
A27: Nitrogen | B27: =Input!E39 -> 1.1 | E27: CO | F27: 0 | G27: 0 | H27: 0
A28: Oxygen | B28: =Input!E40 -> 19 | E28: NOx | F28: 0.2775605321 | G28: 2.630880117 | H28: 0.001067540508
A29: Ash | B29: =Input!E41 -> 11.1
A30: Moisture | B30: =Input!E42 -> 33.3 | F30: 0.2919050455 | G30: 4.309200287 | H30: 0.000660982467
A31: Low calorific value (kJ/kg) | B31: =Input!E43 -> 14687.328
A32: Gross calorific value (kJ/kg) | B32: =Input!E44 -> 16491
A35: Excess air | B35: =Input!E47 -> 200
A36: exhaust gas temperature(℃) | B36: =Input!E48 -> 190
A38: Componet analysis
A39: %CO2 | B39: =Input!E51 -> 0
A40: %O2 | B40: =Input!E52 -> 0
A41: %CO | B41: =Input!E53 -> 0
A42: exhaust gas temperature(℃) | B42: =Input!E54 -> 0
A45: Hours per year | B45: =Input!E57 -> 5000
A47: humidity in ambient air (kg/kg drg air) | B47: =Input!E20 -> 0.0204
A48: ambient temperature (℃) | B48: =Input!E21 -> 10
A49: wind velocity (m/s) | B49: =Input!E22 -> 3.5

Sheet SC (hidden)
A1: Boiler Power | B1: =Input!E4 -> 260 | E1: net heat generation in needed (kW) | F1: 260
E2: theoretical air requirement (kg/kg of coal) | F2: 7.939342586
E3: theoretical (CO2%)t | F3: 19.43090248
A4: Utility Demand | E4: excess air (%) | F4: 40
A5: mass flow of output hot water (kg/s) | B5: =Input!E8 -> 0 | E5: actual air supplied (kg/kg of coal) | F5: 11.11507962
A6: temperature of output hot water (℃) | B6: =Input!E9 -> 0 | E6: dry exhaust gas (kg/kg of coal) | F6: 12.03182983
A7: temperature of input hot water (℃) | B7: =Input!E10 -> 0 | E7: heat losses (%)
E8: 1) heat loss in dry exhaust gas | F8: 9.611441612
A9: Building thermal load demand | E9: 2) heat loss due to formation of water from H2 in fuel | F9: 6.573945045
A10: heat flux density (J/(hour*m^3*℃)) | B10: =Input!E13 -> 0 | E10: 3) heat loss due to moisture in fuel | F10: 4.593645573
A11: volume of building (m^3) | B11: =Input!E14 -> 0 | E11: 4) heat loss due to moisture in air | F11: 0.3208608329
A12: outdoor temperature (℃) | B12: =Input!E15 -> 0 | E12: 5) heat loss due to incomplete combustion | F12: 0.01432949491
A13: indoor temperature (℃) | B13: =Input!E16 -> 0 | E13: 6) heat loss due to radiation and convenction | F13: 3.604436874
E14: 7) heat loss due to unburnt in fly ash | F14: 0.1363975406
E15: 8) heat loss due to unburnt in bottom ash | F15: 0.297162801
A16: type of boiler | B16: hand-feed | E16: total heat loss | F16: 25.15221977
A17: boiler power (MW) | B17: =Input!E28 -> 0.6 | E17: efficient of boiler % | F17: 74.84777832
A18: surface temperature of boiler(℃) | B18: =Input!E29 -> 60 | E18: heat supplied from fuel combustion (kW) | F18: 347.3717041
A19: total surface area of boiler(m^2) | B19: =Input!E30 -> 18 | E19: mass flow of input & output
E20: mass flow of fuel (kg/hr) | F20: 75.8315506
E21: mass flow of air (kg/hr) | F21: 842.8737183
E22: mass flow of exhaust gas (kg/hr) | F22: 912.392334
E23: emission of boiler combustion
A24: Carbon | B24: =Input!E36 -> 63.3 | E24: GHG | F24: 130.7602234 | G24: 1724.351196 | H24: 0.5029239361
A25: Hydrogen | B25: =Input!E37 -> 4.5 | E25: SO2 | F25: 1.328848839 | G25: 17.52369335 | H25: 0.005110957072
A26: Sulphur | B26: =Input!E38 -> 1.1 | E26: fly ash | F26: 1.412692666 | G26: 18.62935257 | H26: 0.005433433331
A27: Nitrogen | B27: =Input!E39 -> 1.1 | E27: CO | F27: 0 | G27: 0 | H27: 0
A28: Oxygen | B28: =Input!E40 -> 19 | E28: PM10 | F28: 0.1995037049 | G28: 2.630879879 | H28: 0.0007673219419
A29: Ash | B29: =Input!E41 -> 11.1 | E29: PM2.5
A30: Moisture | B30: 28.3 | E30: NOx
A31: Low calorific value (kJ/kg) | B31: =Input!E43 -> 14687.328 | F31: 0.1906700134 | G31: 2.514389038 | H31: 0.0007333462055
A32: Gross calorific value (kJ/kg) | B32: =Input!E44 -> 16491
A35: Excess air | B35: 40
A36: exhaust gas temperature(℃) | B36: =Input!E48 -> 190
A38: Componet analysis
A39: %CO2 | B39: =Input!E51 -> 0
A40: %O2 | B40: =Input!E52 -> 0
A41: %CO | B41: =Input!E53 -> 0
A42: exhaust gas temperature(℃) | B42: =Input!E54 -> 0
A45: Hours per year | B45: =Input!E57 -> 5000
A47: humidity in ambient air (kg/kg drg air) | B47: =Input!E20 -> 0.0204
A48: ambient temperature (℃) | B48: =Input!E21 -> 10
A49: wind velocity (m/s) | B49: =Input!E22 -> 3.5

Sheet coal-feeder (hidden)
A1: Boiler Power | B1: =Input!E4 -> 260 | E1: net heat generation in needed (kW) | F1: 260
E2: theoretical air requirement (kg/kg of coal) | F2: 7.939342586
E3: theoretical (CO2%)t | F3: 19.43090248
A4: Utility Demand | E4: excess air (%) | F4: 30
A5: mass flow of output hot water (kg/s) | B5: =Input!E8 -> 0 | E5: actual air supplied (kg/kg of coal) | F5: 10.32114536
A6: temperature of output hot water (℃) | B6: =Input!E9 -> 0 | E6: dry exhaust gas (kg/kg of coal) | F6: 11.23789501
A7: temperature of input hot water (℃) | B7: =Input!E10 -> 0 | E7: heat losses (%)
E8: 1) heat loss in dry exhaust gas | F8: 13.03898335
A9: Building thermal load demand | E9: 2) heat loss due to formation of water from H2 in fuel | F9: 6.833244801
A10: heat flux density (J/(hour*m^3*℃)) | B10: =Input!E13 -> 0 | E10: 3) heat loss due to moisture in fuel | F10: 5.618445396
A11: volume of building (m^3) | B11: =Input!E14 -> 0 | E11: 4) heat loss due to moisture in air | F11: 0.4327468276
A12: outdoor temperature (℃) | B12: =Input!E15 -> 0 | E12: 5) heat loss due to incomplete combustion | F12: 0
A13: indoor temperature (℃) | B13: =Input!E16 -> 0 | E13: 6) heat loss due to radiation and convenction | F13: 3.604436874
E14: 7) heat loss due to unburnt in fly ash | F14: 0.1363975406
E15: 8) heat loss due to unburnt in bottom ash | F15: 0.297162801
A16: type of boiler | B16: hand-feed | E16: total heat loss | F16: 29.96141815
A17: boiler power (MW) | B17: =Input!E28 -> 0.6 | E17: efficient of boiler % | F17: 70.03858185
A18: surface temperature of boiler(℃) | B18: =Input!E29 -> 60 | E18: heat supplied from fuel combustion (kW) | F18: 371.2239685
A19: total surface area of boiler(m^2) | B19: =Input!E30 -> 18 | E19: mass flow of input & output
E20: mass flow of fuel (kg/hr) | F20: 81.03852081
E21: mass flow of air (kg/hr) | F21: 836.4103394
E22: mass flow of exhaust gas (kg/hr) | F22: 910.7023926
E23: emission of boiler combustion
A24: Carbon | B24: =Input!E36 -> 63.3 | E24: GHG | F24: 139.7388763 | G24: 1724.351318 | H24: 0.5374572167
A25: Hydrogen | B25: =Input!E37 -> 4.5 | E25: SO2 | F25: 1.420094252 | G25: 17.52369413 | H25: 0.005461900968
A26: Sulphur | B26: =Input!E38 -> 1.1 | E26: fly ash | F26: 1.509695172 | G26: 18.62935257 | H26: 0.005806519893
A27: Nitrogen | B27: =Input!E39 -> 1.1 | E27: CO | F27: 0 | G27: 0 | H27: 0
A28: Oxygen | B28: =Input!E40 -> 19 | E28: PM10 | F28: 0.2132026255 | G28: 2.630880117 | H28: 0.0008200100981
A29: Ash | B29: =Input!E41 -> 11.1 | E29: PM2.5 | F29: 0.07701503205 | G29: 1.146600048 | H29: 0.0001743909078
A30: Moisture | B30: =Input!E42 -> 33.3 | E30: NOx | F30: 0.228506133 | G30: 3.40199995 | H30: 0.0005174235588
A31: Low calorific value (kJ/kg) | B31: =Input!E43 -> 14687.328
A32: Gross calorific value (kJ/kg) | B32: =Input!E44 -> 16491
A35: Excess air | B35: 30
A36: exhaust gas temperature(℃) | B36: =Input!E48 -> 190
A38: Componet analysis
A39: %CO2 | B39: =Input!E51 -> 0
A40: %O2 | B40: =Input!E52 -> 0
A41: %CO | B41: =Input!E53 -> 0
A42: exhaust gas temperature(℃) | B42: =Input!E54 -> 0
A45: Hours per year | B45: =Input!E57 -> 5000
A47: humidity in ambient air (kg/kg drg air) | B47: =Input!E20 -> 0.0204
A48: ambient temperature (℃) | B48: =Input!E21 -> 10
A49: wind velocity (m/s) | B49: =Input!E22 -> 3.5

Sheet Co-benefits
F3: Expected Reduction in GHG emissions and Air Pollution
F5: Coal Storage | G5: Cyclone | H5: Air preheater | I5: Coal Feeder | J5: Air feed Adj. | K5: Combined Scenario*
A6: Input Data | E6: GHG (t/y) | F6: =P6 -> 16.71768188 | G6: =Q6 -> 0 | H6: 141.5638733 | I6: 210.909729 | J6: 201.1138916 | K6: =SUM(F6:I6) -> 369.1912842 | P6: =IF(Output!J23="",0,(Output!I23-Output!J23)*Input!$E$57/1000) -> 16.71768188 | Q6: =IF(Output!K23="",0,(Output!I23-Output!K23)*Input!$E$57/1000) -> 0 | R6: =IF(Output!L23="",0,(Output!I23-Output!L23)*Input!$E$57/1000) -> 141.5638733 | S6: =IF(Output!M23="",0,(Output!I23-Output!M23)*Input!$E$57/1000) -> 210.909729 | T6: =IF(Output!N23="",0,(Output!I23-Output!N23)*Input!$E$57/1000) -> 201.1138916 | U6: =SUM(P6:T6) -> 570.3051758
A7: Scenario Analysis | E7: SO2 (kg/y) | F7: =P7 -> 154.9637318 | G7: =Q7 -> 0 | H7: =R7 -> 1438.531876 | I7: =S7 -> 2142.673135 | J7: =T7 -> 2043.663263 | K7: =SUM(F7:I7) -> 3736.168742 | P7: =IF(Output!J25="",0,(Output!I25-Output!J25)*Input!$E$57) -> 154.9637318 | Q7: =IF(Output!K25="",0,(Output!I25-Output!K25)*Input!$E$57) -> 0 | R7: =IF(Output!L25="",0,(Output!I25-Output!L25)*Input!$E$57) -> 1438.531876 | S7: =IF(Output!M25="",0,(Output!I25-Output!M25)*Input!$E$57) -> 2142.673135 | T7: =IF(Output!N25="",0,(Output!I25-Output!N25)*Input!$E$57) -> 2043.663263 | U7: =SUM(P7:T7) -> 5779.832006
A8: Environmental Co-Benefits | E8: PM (kg/y) | F8: 195.2564716 | G8: 9561.48155 | H8: 1653.417349 | I8: 3075.392842 | J8: 2348.942161 | K8: 14485.54821 | P8: =IF(Output!J26="",0,(Output!I26-Output!J26)*Input!$E$57) -> 195.2564716 | Q8: =IF(Output!K26="",0,(Output!I26-Output!K26)*Input!$E$57) -> 9561.48155 | R8: =IF(Output!L26="",0,(Output!I26-Output!L26)*Input!$E$57) -> 1653.417349 | S8: =IF(Output!M26="",0,(Output!I26-Output!M26)*Input!$E$57) -> 3075.392842 | T8: =IF(Output!N26="",0,(Output!I26-Output!N26)*Input!$E$57) -> 2348.942161 | U8: 16834.49037
A9: Health & Economic Co-Benefits | E9: CO (kg/y) | F9: 0 | G9: 0 | H9: 0 | I9: 0 | J9: 0 | K9: 0 | P9: =IF(Output!J27="",0,(Output!I27-Output!J27)*Input!$E$57) -> 0 | Q9: =IF(Output!K27="",0,(Output!I27-Output!K27)*Input!$E$57) -> 0 | R9: =IF(Output!L27="",0,(Output!I27-Output!L27)*Input!$E$57) -> 0 | S9: =IF(Output!M27="",0,(Output!I27-Output!M27)*Input!$E$57) -> 0 | T9: =IF(Output!N27="",0,(Output!I27-Output!N27)*Input!$E$57) -> 0 | U9: 0
A10: Database | E10: NOx (kg/y) | F10: 25.50646663 | G10: 0 | H10: 215.9870416 | I10: 321.7895329 | J10: 306.8438172 | K10: 563.2830411 | P10: =IF(Output!J28="",0,(Output!I28-Output!J28)*Input!$E$57) -> 25.50646663 | Q10: =IF(Output!K28="",0,(Output!I28-Output!K28)*Input!$E$57) -> 0 | R10: =IF(Output!L28="",0,(Output!I28-Output!L28)*Input!$E$57) -> 215.9870416 | S10: =IF(Output!M28="",0,(Output!I28-Output!M28)*Input!$E$57) -> 321.7895329 | T10: =IF(Output!N28="",0,(Output!I28-Output!N28)*Input!$E$57) -> 306.8438172 | U10: =SUM(P10:T10) -> 870.1268584
A11: Calculation Method | E11: * Excluding Air feed Adj.
F45: Change in Air Pollution (%) | G45: Change in GHG Emissions (%)
E46: =effectiveness!A2 -> Coal Storage | F46: =effectiveness!B2 -> 0.9614733487 | G46: =effectiveness!C2 -> 1
E47: =effectiveness!A3 -> Cyclone | F47: =effectiveness!B3 -> 0 | G47: =effectiveness!C3 -> 0
E48: =effectiveness!A4 -> Air preheater | F48: =effectiveness!B4 -> 0.9999994165 | G48: =effectiveness!C4 -> 1
E49: =effectiveness!A5 -> Coal Feeder | F49: =effectiveness!B5 -> 1.142672195 | G49: =effectiveness!C5 -> 1
E50: =effectiveness!A6 -> Air feed Adj. | F50: =effectiveness!B6 -> 0.9999999042 | G50: =effectiveness!C6 -> 1

Sheet Cal
A6: Input Data
A7: Scenario Analysis
A8: Environmental Co-Benefits
A9: Health & Economic Co-Benefits
A10: Database
A11: Calculation Method

Sheet Database
C3: Coal Analysis | I3: Cyclone dust collector | M3: Emission Factor of PM with Coal-feeder
C5: type of coal | D5: anthracite | E5: bituminous | F5: sub bituminous | G5: lignite | I5: Type of cyclone | K5: Removal Eff. | M5: Feeder | N5: PM emission factor (lb/ton)
A6: Input Data | C6: Proximate analysis(%) | I6: Moderate efficiency | K6: 60 | N6: anthracite | O6: bituminous and sub-bituminous | P6: lignite
A7: Scenario Analysis | C7: fixed carbon | D7: 83.1 | E7: 50.7 | F7: 54 | G7: 45.3 | I7: High efficiency | K7: 90 | M7: hand-feed | N7: 10 | O7: 15 | P7: 4.0A
A8: Environmental Co-Benefits | C8: volatile matter | D8: 6.4 | E8: 40.2 | F8: 40.8 | G8: 43.6 | M8: traveling grate stoker | N8: 0.8A | O8: 16 | P8: 3.7A
A9: Health & Economic Co-Benefits | C9: ash | D9: 10.5 | E9: 9.1 | F9: 5.2 | G9: 11.1 | M9: reciprocating grate
A10: Database | C10: moisture | D10: 7.7 | E10: 5.2 | F10: 23.4 | G10: 33.3 | M10: vibrating stoker
A11: Calculation Method | C11: Ultimate analysis(%) | M11: spreader stoker | O11: 66 | P11: 8.0A
C12: Carbon | D12: 83.7 | E12: 74 | F12: 72 | G12: 63.3 | M12: pulverized boiler | N12: ND | O12: 10A | P12: 6.5A
C13: Hydrogen | D13: 1.9 | E13: 5.1 | F13: 5 | G13: 4.5 | M13: fluidized-bed boiler | N13: ND | O13: 17 | P13: ND
C14: Sulphur | D14: 0.7 | E14: 2.3 | F14: 0.44 | G14: 1.1
C15: Nitrogen | D15: 0.9 | E15: 1.6 | F15: 0.95 | G15: 1.1
C16: Oxygen | D16: 2.3 | E16: 5.93 | F16: 16.41 | G16: 19 | J16: Value of Beta in the different coal-fired boilers
C17: Ash | D17: 10.5 | E17: 9.1 | F17: 5.2 | G17: 11.1 | J17: Type of boiler | P17: NOx emission factor (lb/ton)
C18: Moisture | D18: 7.7 | E18: 5.2 | F18: 23.4 | G18: 33.3 | J18: Hand-feed | K18: 30 | P18: Type of combustion | Q18: lignite | R18: Bituminous/sub-bituminous | S18: Anthracite
C19: Low calorific value(kJ/kg) | D19: =D20-24.44*(9*D13+D18) -> 27049.888 | E19: =E20-24.44*(9*E13+E18) -> 27919.116 | F19: =F20-24.44*(9*F13+F18) -> 19704.304 | G19: =G20-24.44*(9*G13+G18) -> 14687.328 | J19: Reciprocating grate | K19: 20 | P19: Pulverized boiler | Q19: 7.1 | R19: 14.4 | S19: 18
C20: Gross calorific value(kJ/kg) | D20: 27656 | E20: 29168 | F20: 21376 | G20: 16491 | J20: Traveling grate stoker | K20: 20 | P20: Spreader stoker | Q20: 5.8 | R20: 13.7
J21: Vibrating stoker | K21: 25 | P21: Fluidized-bed boiler | Q21: 3.6 | R21: 3.9 | S21: 1.8
C22: Excess air | J22: Spreader stoker | K22: 40 | P22: Overfeed | R22: 7.5
J23: Pulverized boiler | K23: 60 | P23: Underfeed | R23: 9.5
C24: Feeder | E24: Coal | F24: Excess air rate | J24: Fluidized-bed boiler | K24: 85 | P24: Stoker | S24: 9
C25: Pulverized boiler | D25: Dry-ash furnace | E25: Anthracite, Sub-bituminous | F25: 1.20~1.25
E26: Bituminous, lignite | F26: 1.2
D27: Slag-tap furnace | E27: Anthracite, Sub-bituminous | F27: 1.20~1.25
E28: Bituminous, lignite | F28: 1.2
C29: Grate boiler | D29: Traveling grate stoker | E29: Anthracite | F29: 1.5
E30: Bituminous, lignite | F30: 1.3
D31: Spreader stoker | E31: Bituminous, lignite | F31: 1.3~1.4
D32: Hand-feed | E32: Anthracite | F32: 1.5
E33: Bituminous, lignite | F33: 1.4 | O33: Cyclone removal efficiency

Sheet economic2
B1: y | C1: w | D1: e | E1: a | H1: lny | I1: lnw | J1: lne | K1: lna | P1: Unempoly (%) | Q1: Unemploy | R1: GDP/cap | S1: ln Un | T1: Ln GDP
A2: 1991 | B2: 631.7828373 | C2: 1009.54415 | D2: 0.6258100128 | E2: 0.6593369299 | G2: 1990-01-01 | H2: =LN(B2) -> 6.448545723 | I2: =LN(C2) -> 6.917254171 | J2: -0.4687084478 | K2: -0.4165206006 | O2: =A2 -> 1991 | P2: 2.539999962 | Q2: =P2/100 -> 0.02539999962 | R2: 631.7828373 | S2: =LN(Q2) -> -3.67300612 | T2: =LN(R2) -> 6.448545723
A3: 1992 | B3: 681.9383856 | C3: 1075.782288 | D3: 0.6338999939 | E3: 0.6467550446 | G3: =G2+365 -> 1991-01-01 | H3: =LN(B3) -> 6.52493931 | I3: 6.980803385 | J3: -0.4558640753 | K3: -0.435787658 | O3: =A18 -> 2007 | P3: 8.06000042 | Q3: 0.05564799786 | R3: 1632.726952 | S3: -2.888709179 | T3: 7.398006873
A4: 1993 | B4: 827.9053053 | C4: 1310.370694 | D4: 0.6318099976 | E4: 0.634553029 | G4: =G3+365 -> 1992-01-01 | H4: 6.718898782 | I4: 7.178065349 | J4: -0.4591665668 | K4: -0.4548344193 | O4: 2008 | P4: 7.209000111 | Q4: 0.05859899998 | R4: 2136.563214 | S4: -2.837037648 | T4: 7.666953842
A5: 1994 | B5: 912.2032751 | C5: 1444.754076 | D5: 0.6313899994 | E5: 0.6218050766 | G5: =G4+366 -> 1993-01-01 | H5: 6.815862855 | I5: 7.275694396 | J5: -0.4598315418 | K5: -0.475128617 | O5: 2009 | P5: 6.105999947 | Q5: 0.06549399853 | R5: 1714.360545 | S5: -2.725796766 | T5: 7.44679543
A6: 1995 | B6: 1026.39342 | C6: 1626.691314 | D6: 0.6309700012 | E6: 0.6081670483 | G6: 1994-01-01 | H6: 6.933806403 | I6: 7.394303362 | J6: -0.4604969592 | K6: -0.4973056843 | O6: 2010 | P6: 5.613999844 | Q6: 0.04769299984 | R6: 2643.292914 | S6: -3.042970646 | T6: 7.879780735
A7: 1996 | B7: 1137.410118 | C7: 1804.582225 | D7: 0.6302899933 | E7: 0.5965825261 | G7: 1995-01-01 | H7: 7.036509131 | I7: 7.498084389 | J7: -0.4615752587 | K7: -0.5165376964 | O7: 2011 | P7: 5.152999878 | Q7: 0.03904900074 | R7: 3757.558633 | S7: -3.242937992 | T7: 8.231524726
A8: 1997 | B8: 1063.712365 | C8: 1688.110753 | D8: 0.6301200104 | E8: 0.5838595674 | G8: 1996-01-01 | H8: 6.9695203 | I8: 7.431365285 | J8: -0.4618449851 | K8: -0.5380947919 | O8: 2012 | P8: 4.467999935 | Q8: 0.04231200218 | R8: 4351.88692 | S8: -3.162684494 | T8: 8.378364805
A9: 1998 | B9: 463.9481695 | C9: 732.5535947 | D9: 0.6333300018 | E9: 0.5707158523 | G9: =G8+366 -> 1997-01-01 | H9: 6.139772842 | I9: 6.596536505 | J9: -0.4567636628 | K9: -0.5608638249 | O9: 2013 | P9: 4.335999966 | Q9: 0.04798099995 | R9: 4366.075901 | S9: -3.036950181 | T9: 8.381619922
A10: 1999 | B10: 671.0986161 | C10: 1056.548694 | D10: 0.6351800156 | E10: 0.5583931762 | G10: 1998-01-01 | H10: 6.508916095 | I10: 6.962762926 | J10: -0.4538468312 | K10: -0.5826919479 | O10: 2014 | P10: 4.048999786 | Q10: 0.0486070013 | R10: 4158.525715 | S10: -3.023987699 | T10: 8.332915895
A11: 2000 | B11: 780.190201 | C11: 1235.396897 | D11: 0.6315299988 | E11: 0.5477847796 | G11: 1999-01-01 | H11: 6.659537737 | I11: 7.119147572 | J11: -0.4596098343 | K11: -0.6018728072 | O11: 2015 | P11: 4.513999939 | Q11: 0.07235099792 | R11: 3918.579174 | S11: -2.626226033 | T11: 8.273484411
A12: 2001 | B12: 748.2576157 | C12: 1200.496772 | D12: 0.6232899857 | E12: 0.5435237181 | G12: 2000-01-01 | H12: 6.617747325 | I12: 7.090490727 | J12: -0.4727434019 | K12: -0.6096819337 | O12: 2016 | P12: 4.301000118 | Q12: 0.06359399796 | R12: 3660.150746 | S12: -2.755236185 | T12: 8.205259613
A13: 2002 | B13: 900.1775757 | C13: 1478.779688 | D13: 0.608730011 | E13: 0.5400900544 | G13: =G12+366 -> 2001-01-01 | H13: 6.80259205 | I13: 7.298972491 | J13: -0.4963804413 | K13: -0.616019386 | O13: 2017 | P13: 4.184999943 | Q13: 0.06359399796 | R13: 3671.948419 | S13: -2.755236185 | T13: 8.208477705
A14: 2003 | B14: 1065.648539 | C14: 1763.005285 | D14: 0.6044499969 | E14: 0.537124153 | G14: 2002-01-01 | H14: 6.97133885 | I14: 7.47477518 | J14: -0.5034363304 | K14: -0.6215260138 | O14: 2018 | P14: 4.300000191 | Q14: 0.06359399796 | R14: 4103.697493 | S14: -2.755236185 | T14: 8.319643674
A15: 2004 | B15: 1150.261315 | C15: 1908.007379 | D15: 0.602859993 | E15: 0.5341561693 | G15: 2003-01-01 | H15: 7.047744426 | I15: 7.553814719 | J15: -0.5060702933 | K15: -0.627067031
A16: 2005 | B16: 1263.287321 | C16: 2147.498242 | D16: 0.5882600021 | E16: 0.5309722694 | G16: 2004-01-01 | H16: 7.141472587 | I16: 7.672058835 | J16: -0.5305862483 | K16: -0.6330454825
A17: 2006 | B17: 1589.801489 | C17: 2688.018162 | D17: 0.5914400101 | E17: 0.5241429881 | G17: =G16+366 -> 2005-01-01 | H17: 7.371364438 | I17: 7.896559458 | J17: -0.5251950207 | K17: -0.6459907539
A18: 2007 | B18: 1860.002763 | C18: 3057.857158 | D18: 0.6082699966 | E18: 0.5189208508 | G18: 2006-01-01 | H18: 7.528333252 | I18: 8.025469674 | J18: -0.4971364222 | K18: -0.6560039107
A19: 2008 | B19: 2166.854167 | C19: 3512.830286 | D19: 0.6168399811 | E19: 0.5150823652 | G19: 2007-01-01 | H19: 7.681031702 | I19: 8.164177341 | J19: -0.4831456387 | K19: -0.6634284587
A20: 2009 | B20: 2261.247224 | C20: 3623.387071 | D20: 0.624070015 | E20: 0.5124070452 | G20: 2008-01-01 | H20: 7.723671809 | I20: 8.195164522 | J20: -0.4714927135 | K20: -0.6686359596
A21: 2010 | B21: 3122.362815 | C21: 4938.572162 | D21: 0.6322399902 | E21: 0.5103599123 | G21: =G20+366 -> 2009-01-01 | H21: 8.046345307 | I21: 8.504831532 | J21: -0.4584862255 | K21: -0.6726390919
A22: 2011 | B22: 3643.043936 | C22: 5721.130145 | D22: 0.6367699814 | E22: 0.5053060126 | G22: 2010-01-01 | H22: 8.200574857 | I22: 8.651921643 | J22: -0.4513467853 | K22: -0.6825910678
A23: 2012 | B23: 3694.348946 | C23: 5713.411126 | D23: 0.6466100311 | E23: 0.5013284528 | G23: 2011-01-01 | H23: 8.214559619 | I23: 8.650571519 | J23: -0.4360119002 | K23: -0.6904937983
A24: 2013 | B24: 3623.911582 | C24: 5647.008725 | D24: 0.641740036 | E24: 0.4976774189 | G24: 2012-01-01 | H24: 8.195309269 | I24: 8.638881255 | J24: -0.4435719856 | K24: -0.697803165
A25: 2014 | B25: 3491.624791 | C25: 5438.922173 | D25: 0.641969986 | E25: 0.4935723917 | G25: =G24+366 -> 2013-01-01 | H25: 8.158122463 | I25: 8.60133619 | J25: -0.4432137272 | K25: -0.7060857405
A26: 2015 | B26: 3331.695128 | C26: 5236.785357 | D26: 0.6362099838 | E26: 0.4888575645 | G26: 2014-01-01 | H26: 8.111236501 | I26: 8.563463108 | J26: -0.4522266069 | K26: -0.7156841111
A27: 2016 | B27: 3562.845756 | C27: 5612.106359 | D27: 0.6348500061 | E27: 0.487144076 | G27: 2015-01-01 | H27: 8.178314874 | I27: 8.632681393 | J27: -0.4543665189 | K27: -0.7191953556
A28: 2017 | B28: 3836.913814 | C28: 5962.106462 | D28: 0.6435500336 | E28: 0.4836101889 | G28: 2016-01-01 | H28: 8.252423628 | I28: 8.693179131 | J28: -0.4407555027 | K28: -0.7264760916
A29: 2018 | B29: 3893.596078 | C29: 6061.203868 | D29: 0.6423799896 | E29: 0.4794729712 | G29: =G28+366 -> 2017-01-01 | H29: 8.267088451 | I29: 8.709663717 | J29: -0.4425752662 | K29: -0.7350677549
A33: SUMMARY OUTPUT
A35: Regression Statistics
A36: Multiple R | B36: 0.9904057654
A37: R Square | B37: 0.9809035802
A38: Adjusted R Square | B38: 0.8975702468
A39: Standard Error | B39: 0.4280387885 | L39: https://dergipark.org.tr/en/download/article-file/516492
A40: Observations | B40: 13
A42: ANOVA
B43: df | C43: SS | D43: MS | E43: F | F43: Significance F | Q43: 1981 | R43: 2310099100 | S43: 1733475 | T43: =R43/S43 -> 1332.640563
A44: Regression | B44: 1 | C44: 112.9332597 | D44: 112.9332597 | E44: 616.3900385 | F44: 5.197999715e-11 | J44: 5.4 | K44: =J44*B50/100 -> -0.02000759448 | L44: =J44+K44 -> 5.379992406 | Q44: =Q43+1 -> 1982 | R44: 2552401933 | S44: 1777727 | T44: =R44/S44 -> 1435.767097
A45: Residual | B45: 12 | C45: 2.198606453 | D45: 0.1832172045 | Q45: =Q44+1 -> 1983 | R45: 2725736633 | S45: 1823216 | T45: 1495.015749
A46: Total | B46: 13 | C46: 115.1318662 | M46: Example for Acheh | Q46: 1984 | R46: 2098734600 | S46: 1871090 | T46: 1121.664164
M47: From watertreatment | Q47: 1985 | R47: 2186505475 | S47: 1921881 | T47: 1137.690354
B48: Coefficients | C48: Standard Error | D48: t Stat | E48: P-value | F48: Lower 95% | G48: Upper 95% | H48: Lower 95.0% | I48: Upper 95.0% | M48: GDP/PE | N48: 19.5 | Q48: 1986 | R48: 2896178867 | S48: 1976310 | T48: 1465.447661
A49: Intercept | B49: 0 | M49: PE | N49: 802952 | Q49: 1987 | R49: 3020611600 | S49: 2033344 | T49: 1485.538896
A50: Ln GDP | B50: -0.3705110089 | C50: 0.01492359006 | D50: -24.8272036 | E50: 1.103083633e-11 | F50: -0.4030267184 | G50: -0.3379952994 | H50: -0.4030267184 | I50: -0.3379952994 | M50: Pop | N50: 5189500 | Q50: 1988 | R50: 3204461567 | S50: 2089715 | T50: 1533.444305
M51: GDP | N51: =N48*N49 -> 15657564 | Q51: 1989 | R51: 3576966800 | S51: 2141011 | T51: 1670.690529
M52: GDP/cap | N52: =N51/N50 -> 3.017162347 | Q52: 1990 | R52: 2560785660 | S52: 2184145 | T52: 1172.443066
M53: Unempolyment reduction | N53: =N52*(-B50) -> 1.117891865 | Q53: 1991 | R53: 2379018326 | S53: 2217917 | T53: 1072.636319
A54: RESIDUAL OUTPUT | Q54: 1992 | R54: 1317611864 | S54: 2243495 | T54: 587.3032317
Q55: 1993 | R55: 768401634.2 | S55: 2263186 | T55: 339.5220871
A56: Observation | B56: Predicted ln Un | C56: Residuals | Q56: 1994 | R56: 925817092.2 | S56: 2280479 | T56: 405.9748378
A57: 1 | B57: -2.605809934 | C57: -1.067196186 | Q57: 1995 | R57: 1452165005 | S57: 2298020 | T57: 631.92009
A58: 2 | B58: -2.636680021 | C58: -0.986411664 | Q58: 1996 | R58: 1345719472 | S58: 2316568 | T58: 580.9108441
A59: 3 | B59: -2.715057618 | C59: -0.7016595553 | Q59: 1997 | R59: 1180934203 | S59: 2335734 | T59: 505.5944739
A60: 4 | B60: -2.754240087 | C60: -0.5603209904 | Q60: 1998 | R60: 1124440249 | S60: 2355664 | T60: 477.3347341 | U60: 4.5
A61: 5 | B61: -2.801900208 | C61: -0.4194787444 | Q61: 1999 | R61: 1057408589 | S61: 2376225 | T61: 444.9951451 | U61: 20
A62: 6 | B62: -2.843401626 | C62: -0.2870055772 | Q62: 2000 | R62: 1136896124 | S62: 2397418 | T62: 474.2168965 | U62: 4.6
A63: 7 | B63: -2.816331932 | C63: -0.2455401811 | Q63: 2001 | R63: 1267997934 | S63: 2419588 | T63: 524.0553079 | U63: 6.7
A64: 8 | B64: -2.481037082 | C64: -0.4266843072 | Q64: 2002 | R64: 1396555720 | S64: 2443271 | T64: 571.5926395 | U64: 3.3
A65: 9 | B65: -2.630205158 | C65: -0.1344153647 | Q65: 2003 | R65: 1595297356 | S65: 2468762 | T65: 646.1932563 | U65: 3
A66: 10 | B66: -2.691070256 | C66: -0.1095887533 | Q66: 2004 | R66: 1992066808 | S66: 2496391 | T66: 797.9786853 | U66: 2.8
A67: 11 | B67: -2.674183058 | C67: -0.1256535755 | Q67: 2005 | R67: 2523471532 | S67: 2526424 | T67: 998.8313648 | U67: 11.5
A68: 12 | B68: -2.748877453 | C68: 0.03138280665 | Q68: 2006 | R68: 3414055566 | S68: 2558856 | T68: 1334.211681 | U68: 9.9
A69: 13 | B69: -2.817066794 | C69: 0.1075655506 | Q69: 2007 | R69: 4234999823 | S69: 2593820 | T69: 1632.726952 | U69: 9 | V69: 7.199999809 | W69: =V69/100 -> 0.07199999809
A70: 14 | B70: -2.847941726 | C70: 0.231056759 | Q70: 2008 | R70: 5623216449 | S70: 2631898 | T70: 2136.563214 | U70: 8.6 | V70: 5.564799786 | W70: =V70/100 -> 0.05564799786
A71: 15 | B71: -2.885816587 | C71: 0.3531892227 | Q71: 2009 | R71: 4583850368 | S71: 2673796 | T71: 1714.360545 | U71: 8 | V71: 5.859899998 | W71: 0.05859899998
A72: 16 | B72: -2.978714194 | C72: 0.3952240288 | Q72: 2010 | R72: 7189481824 | S72: 2719896 | T72: 2643.292914 | V72: 6.549399853 | W72: 0.06549399853
A73: 17 | B73: -3.042144139 | C73: 0.5238875613 | Q73: 2011 | R73: 1.040979765e+10 | S73: 2770362 | T73: 3757.558633 | V73: 4.769299984 | W73: 0.04769299984
A74: 18 | B74: -3.10384846 | C74: 0.4740085348 | Q74: 2012 | R74: 1.229277063e+10 | S74: 2824699 | T74: 4351.88692 | V74: 3.904900074 | W74: 0.03904900074
A75: 19 | B75: -3.121079014 | C75: 0.3251807134 | Q75: 2013 | R75: 1.25821226e+10 | S75: 2881792 | T75: 4366.075901 | V75: 4.231200218 | W75: 0.04231200218
A76: 20 | B76: -3.251469003 | C76: 0.371562267 | Q76: 2014 | R76: 1.222651472e+10 | S76: 2940108 | T76: 4158.525715 | V76: 4.798099995 | W76: 0.04798099995
A77: 21 | B77: -3.313792031 | C77: 0.3482008905 | Q77: 2015 | R77: 1.174962062e+10 | S77: 2998439 | T77: 3918.579174 | V77: 4.86070013 | W77: 0.0486070013
A78: 22 | B78: -3.31944317 | C78: 0.211213851 | Q78: 2016 | R78: 1.118673467e+10 | S78: 3056359 | T78: 3660.150746 | V78: 7.235099792 | W78: 0.07235099792
A79: 23 | B79: -3.311664245 | C79: 0.1734463155 | Q79: 2017 | R79: 1.143363588e+10 | S79: 3113779 | T79: 3671.948419 | V79: 6.359399796 | W79: 0.06359399796
A80: 24 | B80: -3.29663733 | C80: 0.08993702852 | Q80: 2018 | R80: 1.300957462e+10 | S80: 3170208 | T80: 4103.697493
A81: 25 | B81: -3.277691057 | C81: 0.1797045364
A82: 26 | B82: -3.304796935 | C82: 0.1584743305
A83: 27 | B83: -3.334743738 | C83: 0.1610802423
A84: 28 | B84: -3.340669685 | C84: 0.1941145663

Sheet storage (hidden)
A1: Boiler Power | B1: =Input!E4 -> 260 | E1: net heat generation in needed (kW) | F1: 260
E2: theoretical air requirement (kg/kg of coal) | F2: 7.939342586
E3: theoretical (CO2%)t | F3: 19.43090248
A4: Utility Demand | E4: excess air (%) | F4: 200
A5: mass flow of output hot water (kg/s) | B5: =Input!E8 -> 0 | E5: actual air supplied (kg/kg of coal) | F5: 23.81802776
A6: temperature of output hot water (℃) | B6: =Input!E9 -> 0 | E6: dry exhaust gas (kg/kg of coal) | F6: 24.74032784
A7: temperature of input hot water (℃) | B7: =Input!E10 -> 0 | E7: heat losses (%)
E8: 1) heat loss in dry exhaust gas | F8: 28.70544052
A9: Building thermal load demand | E9: 2) heat loss due to formation of water from H2 in fuel | F9: 6.833244801
A10: heat flux density (J/(hour*m^3*℃)) | B10: =Input!E13 -> 0 | E10: 3) heat loss due to moisture in fuel | F10: 4.77483511
A11: volume of building (m^3) | B11: =Input!E14 -> 0 | E11: 4) heat loss due to moisture in air | F11: 0.9986465573
A12: outdoor temperature (℃) | B12: =Input!E15 -> 0 | E12: 5) heat loss due to incomplete combustion | F12: 5.333103672e-06
A13: indoor temperature (℃) | B13: =Input!E16 -> 0 | E13: 6) heat loss due to radiation and convenction | F13: 3.604436874
E14: 7) heat loss due to unburnt in fly ash | F14: 0
E15: 8) heat loss due to unburnt in bottom ash | F15: 0.2773519456
A16: type of boiler | B16: hand-feed | E16: total heat loss | F16: 45.1939621
A17: boiler power (MW) | B17: =Input!E28 -> 0.6 | E17: efficient of boiler % | F17: 54.8060379
A18: surface temperature of boiler(℃) | B18: =Input!E29 -> 60 | E18: heat supplied from fuel combustion (kW) | F18: 474.4002991
A19: total surface area of boiler(m^2) | B19: =Input!E30 -> 18 | E19: mass flow of input & output
E20: mass flow of fuel (kg/hr) | F20: 103.5620117
E21: mass flow of air (kg/hr) | F21: 2466.642822
E22: mass flow of exhaust gas (kg/hr) | F22: 2562.158203
E23: emission of boiler combustion
A24: Carbon | B24: =Input!E36 -> 63.3 | E24: GHG | F24: 178.5772858 | G24: 1724.351318 | H24: 0.6868357145
A25: Hydrogen | B25: =Input!E37 -> 4.5 | E25: SO2 | F25: 1.817636132 | G25: 17.55118602 | H25: 0.006990908201
A26: Sulphur | B26: =Input!E38 -> 1.1 | E26: fly ash | F26: 2.085722446 | G26: 20.13984108 | H26: 0.008022009409
A27: Nitrogen | B27: =Input!E39 -> 1.1 | E27: CO | F27: 0 | G27: 0 | H27: 0
A28: Oxygen | B28: =Input!E40 -> 19 | E28: PM10 | F28: 0.2724592388 | G28: 2.630880117 | H28: 0.001047920149
A29: Ash | B29: =Input!E41 -> 11.1 | E29: PM2.5
A30: Moisture | B30: 28.3 | E30: NOx
A31: Low calorific value (kJ/kg) | B31: =Input!E43 -> 14687.328
A32: Gross calorific value (kJ/kg) | B32: =Input!E44 -> 16491
A35: Excess air | B35: =Input!E47 -> 200
A36: exhaust gas temperature(℃) | B36: =Input!E48 -> 190
A38: Componet analysis
A39: %CO2 | B39: =Input!E51 -> 0
A40: %O2 | B40: =Input!E52 -> 0
A41: %CO | B41: =Input!E53 -> 0
A42: exhaust gas temperature(℃) | B42: =Input!E54 -> 0
A45: Hours per year | B45: =Input!E57 -> 5000
A47: humidity in ambient air (kg/kg drg air) | B47: =Input!E20 -> 0.0204
A48: ambient temperature (℃) | B48: =Input!E21 -> 10
A49: wind velocity (m/s) | B49: =Input!E22 -> 3.5

Sheet cyclone (hidden)
A1: Boiler Power | B1: =Input!E4 -> 260 | E1: net heat generation in needed (kW) | F1: 260
E2: theoretical air requirement (kg/kg of coal) | F2: 7.939342586
E3: theoretical (CO2%)t | F3: 19.43090248
A4: Utility Demand | E4: excess air (%) | F4: 200
A5: mass flow of output hot water (kg/s) | B5: =Input!E8 -> 0 | E5: actual air supplied (kg/kg of coal) | F5: 23.81802776
A6: temperature of output hot water (℃) | B6: =Input!E9 -> 0 | E6: dry exhaust gas (kg/kg of coal) | F6: 24.74032784
A7: temperature of input hot water (℃) | B7: =Input!E10 -> 0 | E7: heat losses (%)
E8: 1) heat loss in dry exhaust gas | F8: 28.70544052
A9: Building thermal load demand | E9: 2) heat loss due to formation of water from H2 in fuel | F9: 6.833244801
A10: heat flux density (J/(hour*m^3*℃)) | B10: =Input!E13 -> 0 | E10: 3) heat loss due to moisture in fuel | F10: 5.618445396
A11: volume of building (m^3) | B11: =Input!E14 -> 0 | E11: 4) heat loss due to moisture in air | F11: 0.9986465573
A12: outdoor temperature (℃) | B12: =Input!E15 -> 0 | E12: 5) heat loss due to incomplete combustion | F12: 5.333103672e-06
A13: indoor temperature (℃) | B13: =Input!E16 -> 0 | E13: 6) heat loss due to radiation and convenction | F13: 3.604436874
E14: 7) heat loss due to unburnt in fly ash | F14: 0.1636770517
E15: 8) heat loss due to unburnt in bottom ash | F15: 0.2773519456
A16: type of boiler | B16: hand-feed | E16: total heat loss | F16: 46.20124817
A17: boiler power (MW) | B17: =Input!E28 -> 0.6 | E17: efficient of boiler % | F17: 53.79875183
A18: surface temperature of boiler(℃) | B18: =Input!E29 -> 60 | E18: heat supplied from fuel combustion (kW) | F18: 483.2825928
A19: total surface area of boiler(m^2) | B19: =Input!E30 -> 18 | E19: mass flow of input & output
E20: mass flow of fuel (kg/hr) | F20: 105.5010223
E21: mass flow of air (kg/hr) | F21: 2512.826172
E22: mass flow of exhaust gas (kg/hr) | F22: 2610.129883
E23: emission of boiler combustion
A24: Carbon | B24: =Input!E36 -> 63.3 | E24: GHG | F24: 181.9208221 | G24: 1724.351318 | H24: 0.6996954698
A25: Hydrogen | B25: =Input!E37 -> 4.5 | E25: SO2 | F25: 1.848628879 | G25: 17.52237881 | H25: 0.007110111072
A26: Sulphur | B26: =Input!E38 -> 1.1 | E26: fly ash | F26: 0.2124774307 | G26: 2.013984442 | H26: 0.0008172208644
A27: Nitrogen | B27: =Input!E39 -> 1.1 | E27: CO | F27: 0 | G27: 0 | H27: 0
A28: Oxygen | B28: =Input!E40 -> 19 | E28: PM10 | F28: 0.2775605321 | G28: 2.630880117 | H28: 0.001067540508
A29: Ash | B29: =Input!E41 -> 11.1 | E29: PM2.5
A30: Moisture | B30: =Input!E42 -> 33.3 | E30: NOx
A31: Low calorific value (kJ/kg) | B31: =Input!E43 -> 14687.328
A32: Gross calorific value (kJ/kg) | B32: =Input!E44 -> 16491
A35: Excess air | B35: =Input!E47 -> 200
A36: exhaust gas temperature(℃) | B36: =Input!E48 -> 190
A38: Componet analysis
A39: %CO2 | B39: =Input!E51 -> 0
A40: %O2 | B40: =Input!E52 -> 0
A41: %CO | B41: =Input!E53 -> 0
A42: exhaust gas temperature(℃) | B42: =Input!E54 -> 0
A45: Hours per year | B45: =Input!E57 -> 5000
A47: humidity in ambient air (kg/kg drg air) | B47: =Input!E20 -> 0.0204
A48: ambient temperature (℃) | B48: =Input!E21 -> 10
A49: wind velocity (m/s) | B49: =Input!E22 -> 3.5
